{"text_format":"1","workbook":"xlsx","n_sheets":3,"sheets":["INFO","نموذج ادخال","data"],"not_rendered":{"charts":0,"images":14,"macros":1,"external_links":6,"defined_names":34,"comments":0,"pivot_tables":0},"unopened":[],"bounds":{"document_bytes":16777216,"sheet_cells":100000,"rows_first":2000,"rows_last":500,"rows_between":2000,"halvings":0,"cell_chars":16384,"cell_head_chars":4096},"cells_cut":0,"cells_raw":0,"read":"whole","date_system":"1900"}

{"sheet":"INFO","index":0,"n_rows":2288,"n_cols":14,"rows_kept":2288,"cut":false,"hidden":true,"merged":[]}
[]
["المادة","عمود1","الرمز","الفصل","العام الجامعي","التقدير","الفصل الدراسي ","الفصل-S","المجموع","القسم","القسم بالانجليزي","رقم القيد",null,"المكان"]
["اخلاقيات مهنة التمريض",{"$f":"INDEX(#REF!,MATCH(C3,#REF!,0))","v":{"$error":"#REF!"}},"NU312","الخامس","2008-2007","مقبول","الخريف","الأول","A"," أساسيات تمريض ","Bisec Of Nursimg","200003012",2019,"قاعة ( 1 )"]
["اساسيات التمريض ( 1 )**",{"$f":"INDEX(#REF!,MATCH(C4,#REF!,0))","v":{"$error":"#REF!"}},"NU112","الأول","2009-2008","جيد #","الربيع","الثاني","B"," التمريض العام ","General Of Nursimg","214160195",2020,"قاعة ( 2 )"]
["اساسيات التمريض ( 2 )**",{"$f":"INDEX(#REF!,MATCH(C5,#REF!,0))","v":{"$error":"#REF!"}},"NU113","الثاني","2010-2009","جيد جدا","الصيف","الثالث","C"," قبالة وحديثي الولادة ","Midwifery and Newborns","214165026",2021,"قاعة ( 3 )"]
["الاحصاء الحيوي**",{"$f":"INDEX(#REF!,MATCH(C6,#REF!,0))","v":{"$error":"#REF!"}},"ST101","الأول","2011-2010","ممتاز",null,"الرابع","D"," جراحة وعمليات جراحية ","Surgery And  Operations Of Nursimg","214165108",2022,"قاعة ( 4 )"]
["الاحياء الدقيقة",{"$f":"INDEX(#REF!,MATCH(C7,#REF!,0))","v":{"$error":"#REF!"}},"MB211","الرابع","2012-2011",null,null,"الخامس","E"," تخدير وعناية فائقة ","Anesthesia And Intensive Care","215160018",2023,"قاعة ( 5 )"]
["الادارة والقيادة في التمريض",{"$f":"INDEX(#REF!,MATCH(C8,#REF!,0))","v":{"$error":"#REF!"}},"NU410","الثامن","2013-2012",null,null,"السادس",null,null,null,"215160043",2024,"قاعة ( 6 )"]
["البحث العلمي في التمريض ( 1 )",{"$f":"INDEX(#REF!,MATCH(C9,#REF!,0))","v":{"$error":"#REF!"}},"NU300","السادس","2014-2013",null,null,"السابع",null,null,null,"215160073",2025,"قاعة ( 6 )"]
["البحث العلمي في التمريض ( 2 )",{"$f":"INDEX(#REF!,MATCH(C10,#REF!,0))","v":{"$error":"#REF!"}},"NU400","السابع","2015-2014",null,null,"الثامن",null,null,null,"215160081",2026,"قاعة ( 7 )"]
["التثقيف الصحي ",{"$f":"INDEX(#REF!,MATCH(C11,#REF!,0))","v":{"$error":"#REF!"}},"NU201","الثالث","2016-2015",null,null,null,null,null,null,"215160096",2027,"قاعة ( 8 )"]
["التدريب التخصص المكثف ( 4 )",{"$f":"INDEX(#REF!,MATCH(C12,#REF!,0))","v":{"$error":"#REF!"}},"NU425","الثامن","2017-2016",null,null,null,null,null,null,"215160121",2028,"FundaLab"]
["التدريب السريري ( 1 )",{"$f":"INDEX(#REF!,MATCH(C13,#REF!,0))","v":{"$error":"#REF!"}},"NU212","الثالث","2018-2017",null,null,null,null,null,null,"215160122",2029,"Specialisation OT"]
["التدريب السريري ( 2 )",{"$f":"INDEX(#REF!,MATCH(C14,#REF!,0))","v":{"$error":"#REF!"}},"NU214","الرابع","2019-2018",null,null,null,null,null,null,"215165043",2030,"Specialisation ICU"]
["التدريب السريري ( 3 )",{"$f":"INDEX(#REF!,MATCH(C15,#REF!,0))","v":{"$error":"#REF!"}},"NU322","الخامس","2020-2019",null,null,null,null,null,null,"215165082",2031,"Specialisation MN"]
["التدريب السريري ( 4 )",{"$f":"INDEX(#REF!,MATCH(C16,#REF!,0))","v":{"$error":"#REF!"}},"NU325","السادس","2021-2020",null,null,null,null,null,null,"215165094",2032,"Clinicl Hospitl"]
["التدريب السريري ( 5 )",{"$f":"INDEX(#REF!,MATCH(C17,#REF!,0))","v":{"$error":"#REF!"}},"NU424","السابع","2022-2021",null,null,null,null,null,null,"215165095",2033]
["التدريب السريري ( 6 )",{"$f":"INDEX(#REF!,MATCH(C18,#REF!,0))","v":{"$error":"#REF!"}},"NU426","الثامن","2023-2022",null,null,null,null,null,null,"215165098",2034]
["التغدية العلاجية",{"$f":"INDEX(#REF!,MATCH(C19,#REF!,0))","v":{"$error":"#REF!"}},"NU311","الخامس","2024-2023",null,null,null,null,null,null,"215165118"]
["التقييم الصحي ",{"$f":"INDEX(#REF!,MATCH(C20,#REF!,0))","v":{"$error":"#REF!"}},"NU202","الثالث","2025-2024",null,null,null,null,null,null,"215165122"]
["التمريض الجراحي والباطني ( 1 )",{"$f":"INDEX(#REF!,MATCH(C21,#REF!,0))","v":{"$error":"#REF!"}},"NU320","الخامس","2026-2025",null,null,null,null,null,null,"215165124"]
["التمريض الجراحي والباطني ( 2 )",{"$f":"INDEX(#REF!,MATCH(C22,#REF!,0))","v":{"$error":"#REF!"}},"NU323","السادس","2027-2026",null,null,null,null,null,null,"215165126"]
["التمريض الجراحي والباطني ( 3 )",{"$f":"INDEX(#REF!,MATCH(C23,#REF!,0))","v":{"$error":"#REF!"}},"NU420","السابع",null,null,null,null,null,null,null,"215165138"]
["التمريض الجراحي والباطني ( 4 )",{"$f":"INDEX(#REF!,MATCH(C24,#REF!,0))","v":{"$error":"#REF!"}},"NU421","الثامن",null,null,null,null,null,null,null,"215165139"]
["الحاسوب*",{"$f":"INDEX(#REF!,MATCH(C25,#REF!,0))","v":{"$error":"#REF!"}},"CS101","الثاني",null,null,null,null,null,null,null,"216160003"]
["الكيمياء الحيوية",{"$f":"INDEX(#REF!,MATCH(C26,#REF!,0))","v":{"$error":"#REF!"}},"BC211","الثالث",null,null,null,null,null,null,null,"216160006"]
["اللغة الانجليزية ( 1 )",{"$f":"INDEX(#REF!,MATCH(C27,#REF!,0))","v":{"$error":"#REF!"}},"EL101","الأول",null,null,null,null,null,null,null,"216160007"]
["اللغة الانجليزية ( 2 )",{"$f":"INDEX(#REF!,MATCH(C28,#REF!,0))","v":{"$error":"#REF!"}},"EL102","الثاني",null,null,null,null,null,null,null,"216160011"]
["اللغة الانجليزية ( 3 )",{"$f":"INDEX(#REF!,MATCH(C29,#REF!,0))","v":{"$error":"#REF!"}},"EL201","الثالث",null,null,null,null,null,null,null,"216160012"]
["اللغة الانجليزية ( 4 )",{"$f":"INDEX(#REF!,MATCH(C30,#REF!,0))","v":{"$error":"#REF!"}},"EL202","الرابع",null,null,null,null,null,null,null,"216160015"]
["اللغة العربية ( 1 )",{"$f":"INDEX(#REF!,MATCH(C31,#REF!,0))","v":{"$error":"#REF!"}},"AR101","الأول",null,null,null,null,null,null,null,"216160023"]
["اللغة العربية ( 2 )",{"$f":"INDEX(#REF!,MATCH(C32,#REF!,0))","v":{"$error":"#REF!"}},"AR102","الثاني",null,null,null,null,null,null,null,"216160028"]
["تقارير التمريض",{"$f":"INDEX(#REF!,MATCH(C33,#REF!,0))","v":{"$error":"#REF!"}},"NU401","الثامن",null,null,null,null,null,null,null,"216160029"]
["تمريض الامومة والطفولة ( 1 )",{"$f":"INDEX(#REF!,MATCH(C34,#REF!,0))","v":{"$error":"#REF!"}},"NU211","الثالث",null,null,null,null,null,null,null,"216160038"]
["تمريض الامومة والطفولة ( 2 )",{"$f":"INDEX(#REF!,MATCH(C35,#REF!,0))","v":{"$error":"#REF!"}},"NU213","الرابع",null,null,null,null,null,null,null,"216160039"]
["تمريض التخدير والعناية الفائقة التخصص ( 1 )",{"$f":"INDEX(#REF!,MATCH(C36,#REF!,0))","v":{"$error":"#REF!"}},"NU321","الخامس",null,null,null,null,null,null,null,"216160042"]
["تمريض التخدير والعناية الفائقة التخصص ( 2 )",{"$f":"INDEX(#REF!,MATCH(C37,#REF!,0))","v":{"$error":"#REF!"}},"NU324","السادس",null,null,null,null,null,null,null,"216160061"]
["تمريض التخدير والعناية الفائقة التخصص ( 3 )",{"$f":"INDEX(#REF!,MATCH(C38,#REF!,0))","v":{"$error":"#REF!"}},"NU423","السابع",null,null,null,null,null,null,null,"216160062"]
["تمريض الصحة النفسية",{"$f":"INDEX(#REF!,MATCH(C39,#REF!,0))","v":{"$error":"#REF!"}},"NU310","الخامس",null,null,null,null,null,null,null,"216160063"]
["تمريض صحة المجتمع","COMUNTY HEALTH NURSING","NU313","السادس",null,null,null,null,null,null,null,"216160068"]
["علم الاجماع والانتروبيولوجيا",{"$f":"INDEX(#REF!,MATCH(C41,#REF!,0))","v":{"$error":"#REF!"}},"SO101","الثاني",null,null,null,null,null,null,null,"216160069"]
["علم الادوية للتمريض",{"$f":"INDEX(#REF!,MATCH(C42,#REF!,0))","v":{"$error":"#REF!"}},"NU221","الرابع",null,null,null,null,null,null,null,"216160071"]
["علم الامراض الوظيفية ",{"$f":"INDEX(#REF!,MATCH(C43,#REF!,0))","v":{"$error":"#REF!"}},"PT211","الثالث",null,null,null,null,null,null,null,"216160081"]
["علم التشريح",{"$f":"INDEX(#REF!,MATCH(C44,#REF!,0))","v":{"$error":"#REF!"}},"AN111","الأول",null,null,null,null,null,null,null,"216160085"]
["علم الطفيليات",{"$f":"INDEX(#REF!,MATCH(C45,#REF!,0))","v":{"$error":"#REF!"}},"PA211","الرابع",null,null,null,null,null,null,null,"216160093"]
["علم النفس العام",{"$f":"INDEX(#REF!,MATCH(C46,#REF!,0))","v":{"$error":"#REF!"}},"PC211","الرابع",null,null,null,null,null,null,null,"216160096"]
["علم وظائف الاعظاء",{"$f":"INDEX(#REF!,MATCH(C47,#REF!,0))","v":{"$error":"#REF!"}},"PS111","الثاني",null,null,null,null,null,null,null,"216160105"]
["مقدمة في التمريض",{"$f":"INDEX(#REF!,MATCH(C48,#REF!,0))","v":{"$error":"#REF!"}},"NU111","الأول",null,null,null,null,null,null,null,"216160106"]
[47,null,null,null,null,null,null,null,null,null,null,"216160110"]
[null,null,null,null,null,null,null,null,null,null,null,"216160120"]
[null,null,null,null,null,null,null,null,null,null,null,"216160133"]
[null,null,null,null,null,null,null,null,null,null,null,"216160139"]
[null,null,null,null,null,null,null,null,null,null,null,"216160144"]
[null,null,null,null,null,null,null,null,null,null,null,"216160145"]
[null,null,null,null,null,null,null,null,null,null,null,"216160147"]
[null,null,null,null,null,null,null,null,null,null,null,"216160155"]
[null,null,null,null,null,null,null,null,null,null,null,"216160157"]
[null,null,null,null,null,null,null,null,null,null,null,"216160162"]
[null,null,null,null,null,null,null,null,null,null,null,"216160172"]
[null,null,null,null,null,null,null,null,null,null,null,"216165001"]
[null,null,null,null,null,null,null,null,null,null,null,"216165015"]
[null,null,null,null,null,null,null,null,null,null,null,"216165037"]
[null,null,null,null,null,null,null,null,null,null,null,"216165044"]
[null,null,null,null,null,null,null,null,null,null,null,"216165047"]
[null,null,null,null,null,null,null,null,null,null,null,"216165059"]
[null,null,null,null,null,null,null,null,null,null,null,"216165061"]
[null,null,null,null,null,null,null,null,null,null,null,"216165062"]
[null,null,null,null,null,null,null,null,null,null,null,"216165072"]
[null,null,null,null,null,null,null,null,null,null,null,"216165082"]
[null,null,null,null,null,null,null,null,null,null,null,"216165083"]
[null,null,null,null,null,null,null,null,null,null,null,"216165096"]
[null,null,null,null,null,null,null,null,null,null,null,"216165098"]
[null,null,null,null,null,null,null,null,null,null,null,"216165107"]
[null,null,null,null,null,null,null,null,null,null,null,"216165112"]
[null,null,null,null,null,null,null,null,null,null,null,"216165118"]
[null,null,null,null,null,null,null,null,null,null,null,"216165124"]
[null,null,null,null,null,null,null,null,null,null,null,"217160008"]
[null,null,null,null,null,null,null,null,null,null,null,"217160014"]
[null,null,null,null,null,null,null,null,null,null,null,"217160018"]
[null,null,null,null,null,null,null,null,null,null,null,"217160019"]
[null,null,null,null,null,null,null,null,null,null,null,"217160020"]
[null,null,null,null,null,null,null,null,null,null,null,"217160026"]
[null,null,null,null,null,null,null,null,null,null,null,"217160030"]
[null,null,null,null,null,null,null,null,null,null,null,"217160035"]
[null,null,null,null,null,null,null,null,null,null,null,"217160036"]
[null,null,null,null,null,null,null,null,null,null,null,"217160039"]
[null,null,null,null,null,null,null,null,null,null,null,"217160041"]
[null,null,null,null,null,null,null,null,null,null,null,"217160042"]
[null,null,null,null,null,null,null,null,null,null,null,"217160047"]
[null,null,null,null,null,null,null,null,null,null,null,"217160063"]
[null,null,null,null,null,null,null,null,null,null,null,"217160066"]
[null,null,null,null,null,null,null,null,null,null,null,"217160071"]
[null,null,null,null,null,null,null,null,null,null,null,"217160075"]
[null,null,null,null,null,null,null,null,null,null,null,"217160076"]
[null,null,null,null,null,null,null,null,null,null,null,"217160077"]
[null,null,null,null,null,null,null,null,null,null,null,"217160131"]
[null,null,null,null,null,null,null,null,null,null,null,"217160134"]
[null,null,null,null,null,null,null,null,null,null,null,"217160137"]
[null,null,null,null,null,null,null,null,null,null,null,"217160149"]
[null,null,null,null,null,null,null,null,null,null,null,"217160152"]
[null,null,null,null,null,null,null,null,null,null,null,"217160153"]
[null,null,null,null,null,null,null,null,null,null,null,"217160154"]
[null,null,null,null,null,null,null,null,null,null,null,"217160155"]
[null,null,null,null,null,null,null,null,null,null,null,"217160157"]
[null,null,null,null,null,null,null,null,null,null,null,"217160160"]
[null,null,null,null,null,null,null,null,null,null,null,"217160162"]
[null,null,null,null,null,null,null,null,null,null,null,"217160167"]
[null,null,null,null,null,null,null,null,null,null,null,"217160168"]
[null,null,null,null,null,null,null,null,null,null,null,"217160176"]
[null,null,null,null,null,null,null,null,null,null,null,"217160182"]
[null,null,null,null,null,null,null,null,null,null,null,"217160185"]
[null,null,null,null,null,null,null,null,null,null,null,"217160192"]
[null,null,null,null,null,null,null,null,null,null,null,"217160193"]
[null,null,null,null,null,null,null,null,null,null,null,"217160194"]
[null,null,null,null,null,null,null,null,null,null,null,"217160196"]
[null,null,null,null,null,null,null,null,null,null,null,"217160198"]
[null,null,null,null,null,null,null,null,null,null,null,"217165005"]
[null,null,null,null,null,null,null,null,null,null,null,"217165007"]
[null,null,null,null,null,null,null,null,null,null,null,"217165014"]
[null,null,null,null,null,null,null,null,null,null,null,"217165015"]
[null,null,null,null,null,null,null,null,null,null,null,"217165018"]
[null,null,null,null,null,null,null,null,null,null,null,"217165021"]
[null,null,null,null,null,null,null,null,null,null,null,"217165022"]
[null,null,null,null,null,null,null,null,null,null,null,"217165026"]
[null,null,null,null,null,null,null,null,null,null,null,"217165027"]
[null,null,null,null,null,null,null,null,null,null,null,"217165032"]
[null,null,null,null,null,null,null,null,null,null,null,"217165034"]
[null,null,null,null,null,null,null,null,null,null,null,"217165037"]
[null,null,null,null,null,null,null,null,null,null,null,"217165042"]
[null,null,null,null,null,null,null,null,null,null,null,"217165043"]
[null,null,null,null,null,null,null,null,null,null,null,"217165048"]
[null,null,null,null,null,null,null,null,null,null,null,"217165051"]
[null,null,null,null,null,null,null,null,null,null,null,"217165055"]
[null,null,null,null,null,null,null,null,null,null,null,"217165056"]
[null,null,null,null,null,null,null,null,null,null,null,"217165059"]
[null,null,null,null,null,null,null,null,null,null,null,"217165064"]
[null,null,null,null,null,null,null,null,null,null,null,"217165066"]
[null,null,null,null,null,null,null,null,null,null,null,"217165067"]
[null,null,null,null,null,null,null,null,null,null,null,"217165068"]
[null,null,null,null,null,null,null,null,null,null,null,"217165072"]
[null,null,null,null,null,null,null,null,null,null,null,"217165079"]
[null,null,null,null,null,null,null,null,null,null,null,"217165082"]
[null,null,null,null,null,null,null,null,null,null,null,"217165085"]
[null,null,null,null,null,null,null,null,null,null,null,"217165087"]
[null,null,null,null,null,null,null,null,null,null,null,"217165089"]
[null,null,null,null,null,null,null,null,null,null,null,"217165092"]
[null,null,null,null,null,null,null,null,null,null,null,"217165095"]
[null,null,null,null,null,null,null,null,null,null,null,"217165096"]
[null,null,null,null,null,null,null,null,null,null,null,"217165097"]
[null,null,null,null,null,null,null,null,null,null,null,"217165099"]
[null,null,null,null,null,null,null,null,null,null,null,"217165103"]
[null,null,null,null,null,null,null,null,null,null,null,"217165107"]
[null,null,null,null,null,null,null,null,null,null,null,"217165108"]
[null,null,null,null,null,null,null,null,null,null,null,"217165109"]
[null,null,null,null,null,null,null,null,null,null,null,"217165110"]
[null,null,null,null,null,null,null,null,null,null,null,"217165115"]
[null,null,null,null,null,null,null,null,null,null,null,"217165118"]
[null,null,null,null,null,null,null,null,null,null,null,"217165120"]
[null,null,null,null,null,null,null,null,null,null,null,"2181601452"]
[null,null,null,null,null,null,null,null,null,null,null,"2181601453"]
[null,null,null,null,null,null,null,null,null,null,null,"2181601454"]
[null,null,null,null,null,null,null,null,null,null,null,"2181601455"]
[null,null,null,null,null,null,null,null,null,null,null,"2181601456"]
[null,null,null,null,null,null,null,null,null,null,null,"2181601457"]
[null,null,null,null,null,null,null,null,null,null,null,"2181601458"]
[null,null,null,null,null,null,null,null,null,null,null,"2181601459"]
[null,null,null,null,null,null,null,null,null,null,null,"2181601460"]
[null,null,null,null,null,null,null,null,null,null,null,"2181601461"]
[null,null,null,null,null,null,null,null,null,null,null,"2181601462"]
[null,null,null,null,null,null,null,null,null,null,null,"2181601463"]
[null,null,null,null,null,null,null,null,null,null,null,"2181601464"]
[null,null,null,null,null,null,null,null,null,null,null,"2181601465"]
[null,null,null,null,null,null,null,null,null,null,null,"2181601466"]
[null,null,null,null,null,null,null,null,null,null,null,"2181601467"]
[null,null,null,null,null,null,null,null,null,null,null,"2181601468"]
[null,null,null,null,null,null,null,null,null,null,null,"2181601469"]
[null,null,null,null,null,null,null,null,null,null,null,"2181601470"]
[null,null,null,null,null,null,null,null,null,null,null,"2181601471"]
[null,null,null,null,null,null,null,null,null,null,null,"2181601472"]
[null,null,null,null,null,null,null,null,null,null,null,"2181601473"]
[null,null,null,null,null,null,null,null,null,null,null,"2181601474"]
[null,null,null,null,null,null,null,null,null,null,null,"2181601475"]
[null,null,null,null,null,null,null,null,null,null,null,"2181601476"]
[null,null,null,null,null,null,null,null,null,null,null,"2181601477"]
[null,null,null,null,null,null,null,null,null,null,null,"2181601478"]
[null,null,null,null,null,null,null,null,null,null,null,"2181601479"]
[null,null,null,null,null,null,null,null,null,null,null,"2181601480"]
[null,null,null,null,null,null,null,null,null,null,null,"2181601481"]
[null,null,null,null,null,null,null,null,null,null,null,"2181601482"]
[null,null,null,null,null,null,null,null,null,null,null,"2181601483"]
[null,null,null,null,null,null,null,null,null,null,null,"2181601484"]
[null,null,null,null,null,null,null,null,null,null,null,"2181601485"]
[null,null,null,null,null,null,null,null,null,null,null,"2181601486"]
[null,null,null,null,null,null,null,null,null,null,null,"2181601487"]
[null,null,null,null,null,null,null,null,null,null,null,"2181601488"]
[null,null,null,null,null,null,null,null,null,null,null,"2181601489"]
[null,null,null,null,null,null,null,null,null,null,null,"2181601491"]
[null,null,null,null,null,null,null,null,null,null,null,"2181601492"]
[null,null,null,null,null,null,null,null,null,null,null,"2181601493"]
[null,null,null,null,null,null,null,null,null,null,null,"2181601494"]
[null,null,null,null,null,null,null,null,null,null,null,"2181601495"]
[null,null,null,null,null,null,null,null,null,null,null,"2181601496"]
[null,null,null,null,null,null,null,null,null,null,null,"2181601497"]
[null,null,null,null,null,null,null,null,null,null,null,"2181601499"]
[null,null,null,null,null,null,null,null,null,null,null,"2181601500"]
[null,null,null,null,null,null,null,null,null,null,null,"2181601501"]
[null,null,null,null,null,null,null,null,null,null,null,"2181601503"]
[null,null,null,null,null,null,null,null,null,null,null,"2181601504"]
[null,null,null,null,null,null,null,null,null,null,null,"2181609767"]
[null,null,null,null,null,null,null,null,null,null,null,"2181609778"]
[null,null,null,null,null,null,null,null,null,null,null,"2181609780"]
[null,null,null,null,null,null,null,null,null,null,null,"2181609783"]
[null,null,null,null,null,null,null,null,null,null,null,"2181609799"]
[null,null,null,null,null,null,null,null,null,null,null,"200003010"]
[null,null,null,null,null,null,null,null,null,null,null,"213165075"]
[null,null,null,null,null,null,null,null,null,null,null,"214160020"]
[null,null,null,null,null,null,null,null,null,null,null,"214160034"]
[null,null,null,null,null,null,null,null,null,null,null,"214160078"]
[null,null,null,null,null,null,null,null,null,null,null,"214160191"]
[null,null,null,null,null,null,null,null,null,null,null,"214165030"]
[null,null,null,null,null,null,null,null,null,null,null,"214165046"]
[null,null,null,null,null,null,null,null,null,null,null,"214165082"]
[null,null,null,null,null,null,null,null,null,null,null,"214165103"]
[null,null,null,null,null,null,null,null,null,null,null,"215160013"]
[null,null,null,null,null,null,null,null,null,null,null,"215160015"]
[null,null,null,null,null,null,null,null,null,null,null,"215160022"]
[null,null,null,null,null,null,null,null,null,null,null,"215160027"]
[null,null,null,null,null,null,null,null,null,null,null,"215160040"]
[null,null,null,null,null,null,null,null,null,null,null,"215160042"]
[null,null,null,null,null,null,null,null,null,null,null,"215160050"]
[null,null,null,null,null,null,null,null,null,null,null,"215160055"]
[null,null,null,null,null,null,null,null,null,null,null,"215160065"]
[null,null,null,null,null,null,null,null,null,null,null,"215160083"]
[null,null,null,null,null,null,null,null,null,null,null,"215165001"]
[null,null,null,null,null,null,null,null,null,null,null,"215165025"]
[null,null,null,null,null,null,null,null,null,null,null,"215165026"]
[null,null,null,null,null,null,null,null,null,null,null,"215165060"]
[null,null,null,null,null,null,null,null,null,null,null,"215165061"]
[null,null,null,null,null,null,null,null,null,null,null,"215165072"]
[null,null,null,null,null,null,null,null,null,null,null,"215165078"]
[null,null,null,null,null,null,null,null,null,null,null,"215165135"]
[null,null,null,null,null,null,null,null,null,null,null,"215165136"]
[null,null,null,null,null,null,null,null,null,null,null,"216160001"]
[null,null,null,null,null,null,null,null,null,null,null,"216160014"]
[null,null,null,null,null,null,null,null,null,null,null,"216160022"]
[null,null,null,null,null,null,null,null,null,null,null,"216160026"]
[null,null,null,null,null,null,null,null,null,null,null,"216160054"]
[null,null,null,null,null,null,null,null,null,null,null,"216160067"]
[null,null,null,null,null,null,null,null,null,null,null,"216160097"]
[null,null,null,null,null,null,null,null,null,null,null,"216160101"]
[null,null,null,null,null,null,null,null,null,null,null,"216160103"]
[null,null,null,null,null,null,null,null,null,null,null,"216160164"]
[null,null,null,null,null,null,null,null,null,null,null,"216165017"]
[null,null,null,null,null,null,null,null,null,null,null,"216165054"]
[null,null,null,null,null,null,null,null,null,null,null,"216165056"]
[null,null,null,null,null,null,null,null,null,null,null,"216165060"]
[null,null,null,null,null,null,null,null,null,null,null,"216165065"]
[null,null,null,null,null,null,null,null,null,null,null,"216165075"]
[null,null,null,null,null,null,null,null,null,null,null,"216165085"]
[null,null,null,null,null,null,null,null,null,null,null,"216165092"]
[null,null,null,null,null,null,null,null,null,null,null,"216165105"]
[null,null,null,null,null,null,null,null,null,null,null,"217160067"]
[null,null,null,null,null,null,null,null,null,null,null,"217160068"]
[null,null,null,null,null,null,null,null,null,null,null,"217160138"]
[null,null,null,null,null,null,null,null,null,null,null,"217160156"]
[null,null,null,null,null,null,null,null,null,null,null,"217160159"]
[null,null,null,null,null,null,null,null,null,null,null,"217160163"]
[null,null,null,null,null,null,null,null,null,null,null,"217160164"]
[null,null,null,null,null,null,null,null,null,null,null,"217160173"]
[null,null,null,null,null,null,null,null,null,null,null,"217160175"]
[null,null,null,null,null,null,null,null,null,null,null,"217160186"]
[null,null,null,null,null,null,null,null,null,null,null,"217160188"]
[null,null,null,null,null,null,null,null,null,null,null,"217160190"]
[null,null,null,null,null,null,null,null,null,null,null,"217165001"]
[null,null,null,null,null,null,null,null,null,null,null,"217165002"]
[null,null,null,null,null,null,null,null,null,null,null,"217165004"]
[null,null,null,null,null,null,null,null,null,null,null,"217165006"]
[null,null,null,null,null,null,null,null,null,null,null,"217165016"]
[null,null,null,null,null,null,null,null,null,null,null,"217165020"]
[null,null,null,null,null,null,null,null,null,null,null,"217165030"]
[null,null,null,null,null,null,null,null,null,null,null,"217165031"]
[null,null,null,null,null,null,null,null,null,null,null,"217165046"]
[null,null,null,null,null,null,null,null,null,null,null,"217165050"]
[null,null,null,null,null,null,null,null,null,null,null,"217165052"]
[null,null,null,null,null,null,null,null,null,null,null,"217165063"]
[null,null,null,null,null,null,null,null,null,null,null,"217165069"]
[null,null,null,null,null,null,null,null,null,null,null,"217165073"]
[null,null,null,null,null,null,null,null,null,null,null,"217165080"]
[null,null,null,null,null,null,null,null,null,null,null,"217165081"]
[null,null,null,null,null,null,null,null,null,null,null,"217165091"]
[null,null,null,null,null,null,null,null,null,null,null,"217165100"]
[null,null,null,null,null,null,null,null,null,null,null,"217165101"]
[null,null,null,null,null,null,null,null,null,null,null,"217165105"]
[null,null,null,null,null,null,null,null,null,null,null,"217165111"]
[null,null,null,null,null,null,null,null,null,null,null,"217165112"]
[null,null,null,null,null,null,null,null,null,null,null,"217165117"]
[null,null,null,null,null,null,null,null,null,null,null,"2181609762"]
[null,null,null,null,null,null,null,null,null,null,null,"2181609763"]
[null,null,null,null,null,null,null,null,null,null,null,"2181609764"]
[null,null,null,null,null,null,null,null,null,null,null,"2181609766"]
[null,null,null,null,null,null,null,null,null,null,null,"2181609768"]
[null,null,null,null,null,null,null,null,null,null,null,"2181609769"]
[null,null,null,null,null,null,null,null,null,null,null,"2181609779"]
[null,null,null,null,null,null,null,null,null,null,null,"2181609781"]
[null,null,null,null,null,null,null,null,null,null,null,"2181609782"]
[null,null,null,null,null,null,null,null,null,null,null,"2181609797"]
[null,null,null,null,null,null,null,null,null,null,null,"214160180"]
[null,null,null,null,null,null,null,null,null,null,null,"216160037"]
[null,null,null,null,null,null,null,null,null,null,null,"216160117"]
[null,null,null,null,null,null,null,null,null,null,null,"216160125"]
[null,null,null,null,null,null,null,null,null,null,null,"216165119"]
[null,null,null,null,null,null,null,null,null,null,null,"217165093"]
[null,null,null,null,null,null,null,null,null,null,null,"2181609765"]
[null,null,null,null,null,null,null,null,null,null,null,"2181609798"]
[null,null,null,null,null,null,null,null,null,null,null,"213165047"]
[null,null,null,null,null,null,null,null,null,null,null,"215160033"]
[null,null,null,null,null,null,null,null,null,null,null,"215160049"]
[null,null,null,null,null,null,null,null,null,null,null,"215160116"]
[null,null,null,null,null,null,null,null,null,null,null,"215165087"]
[null,null,null,null,null,null,null,null,null,null,null,"215165100"]
[null,null,null,null,null,null,null,null,null,null,null,"216160169"]
[null,null,null,null,null,null,null,null,null,null,null,"216165008"]
[null,null,null,null,null,null,null,null,null,null,null,"216165009"]
[null,null,null,null,null,null,null,null,null,null,null,"216165030"]
[null,null,null,null,null,null,null,null,null,null,null,"216165084"]
[null,null,null,null,null,null,null,null,null,null,null,"216165086"]
[null,null,null,null,null,null,null,null,null,null,null,"217165062"]
[null,null,null,null,null,null,null,null,null,null,null,"214165034"]
[null,null,null,null,null,null,null,null,null,null,null,"215160071"]
[null,null,null,null,null,null,null,null,null,null,null,"215160075"]
[null,null,null,null,null,null,null,null,null,null,null,"215160120"]
[null,null,null,null,null,null,null,null,null,null,null,"215160123"]
[null,null,null,null,null,null,null,null,null,null,null,"215165055"]
[null,null,null,null,null,null,null,null,null,null,null,"215165096"]
[null,null,null,null,null,null,null,null,null,null,null,"215165104"]
[null,null,null,null,null,null,null,null,null,null,null,"215165127"]
[null,null,null,null,null,null,null,null,null,null,null,"216160010"]
[null,null,null,null,null,null,null,null,null,null,null,"216160047"]
[null,null,null,null,null,null,null,null,null,null,null,"216160070"]
[null,null,null,null,null,null,null,null,null,null,null,"216160075"]
[null,null,null,null,null,null,null,null,null,null,null,"216160078"]
[null,null,null,null,null,null,null,null,null,null,null,"216160079"]
[null,null,null,null,null,null,null,null,null,null,null,"216160086"]
[null,null,null,null,null,null,null,null,null,null,null,"216160166"]
[null,null,null,null,null,null,null,null,null,null,null,"216165003"]
[null,null,null,null,null,null,null,null,null,null,null,"216165034"]
[null,null,null,null,null,null,null,null,null,null,null,"216165093"]
[null,null,null,null,null,null,null,null,null,null,null,"217160001"]
[null,null,null,null,null,null,null,null,null,null,null,"217160002"]
[null,null,null,null,null,null,null,null,null,null,null,"217160006"]
[null,null,null,null,null,null,null,null,null,null,null,"217160015"]
[null,null,null,null,null,null,null,null,null,null,null,"217160033"]
[null,null,null,null,null,null,null,null,null,null,null,"217165008"]
[null,null,null,null,null,null,null,null,null,null,null,"217165012"]
[null,null,null,null,null,null,null,null,null,null,null,"217165024"]
[null,null,null,null,null,null,null,null,null,null,null,"217165047"]
[null,null,null,null,null,null,null,null,null,null,null,"217165061"]
[null,null,null,null,null,null,null,null,null,null,null,"217165071"]
[null,null,null,null,null,null,null,null,null,null,null,"212165105"]
[null,null,null,null,null,null,null,null,null,null,null,"213165087"]
[null,null,null,null,null,null,null,null,null,null,null,"214160026"]
[null,null,null,null,null,null,null,null,null,null,null,"214160049"]
[null,null,null,null,null,null,null,null,null,null,null,"214160092"]
[null,null,null,null,null,null,null,null,null,null,null,"214160112"]
[null,null,null,null,null,null,null,null,null,null,null,"214165068"]
[null,null,null,null,null,null,null,null,null,null,null,"214165071"]
[null,null,null,null,null,null,null,null,null,null,null,"214165084"]
[null,null,null,null,null,null,null,null,null,null,null,"214165104"]
[null,null,null,null,null,null,null,null,null,null,null,"214165109"]
[null,null,null,null,null,null,null,null,null,null,null,"214165111"]
[null,null,null,null,null,null,null,null,null,null,null,"214165145"]
[null,null,null,null,null,null,null,null,null,null,null,"215160079"]
[null,null,null,null,null,null,null,null,null,null,null,"215160082"]
[null,null,null,null,null,null,null,null,null,null,null,"215160105"]
[null,null,null,null,null,null,null,null,null,null,null,"215165009"]
[null,null,null,null,null,null,null,null,null,null,null,"215165012"]
[null,null,null,null,null,null,null,null,null,null,null,"215165074"]
[null,null,null,null,null,null,null,null,null,null,null,"215165079"]
[null,null,null,null,null,null,null,null,null,null,null,"215165085"]
[null,null,null,null,null,null,null,null,null,null,null,"215165090"]
[null,null,null,null,null,null,null,null,null,null,null,"215165091"]
[null,null,null,null,null,null,null,null,null,null,null,"215165093"]
[null,null,null,null,null,null,null,null,null,null,null,"215165141"]
[null,null,null,null,null,null,null,null,null,null,null,"216160004"]
[null,null,null,null,null,null,null,null,null,null,null,"216160024"]
[null,null,null,null,null,null,null,null,null,null,null,"216160035"]
[null,null,null,null,null,null,null,null,null,null,null,"216160058"]
[null,null,null,null,null,null,null,null,null,null,null,"216160064"]
[null,null,null,null,null,null,null,null,null,null,null,"216160080"]
[null,null,null,null,null,null,null,null,null,null,null,"216160099"]
[null,null,null,null,null,null,null,null,null,null,null,"216160116"]
[null,null,null,null,null,null,null,null,null,null,null,"216160126"]
[null,null,null,null,null,null,null,null,null,null,null,"216160129"]
[null,null,null,null,null,null,null,null,null,null,null,"216160138"]
[null,null,null,null,null,null,null,null,null,null,null,"216160150"]
[null,null,null,null,null,null,null,null,null,null,null,"216160170"]
[null,null,null,null,null,null,null,null,null,null,null,"216165018"]
[null,null,null,null,null,null,null,null,null,null,null,"216165020"]
[null,null,null,null,null,null,null,null,null,null,null,"216165042"]
[null,null,null,null,null,null,null,null,null,null,null,"216165053"]
[null,null,null,null,null,null,null,null,null,null,null,"216165055"]
[null,null,null,null,null,null,null,null,null,null,null,"216165058"]
[null,null,null,null,null,null,null,null,null,null,null,"216165063"]
[null,null,null,null,null,null,null,null,null,null,null,"216165067"]
[null,null,null,null,null,null,null,null,null,null,null,"216165076"]
[null,null,null,null,null,null,null,null,null,null,null,"216165089"]
[null,null,null,null,null,null,null,null,null,null,null,"216165091"]
[null,null,null,null,null,null,null,null,null,null,null,"216165094"]
[null,null,null,null,null,null,null,null,null,null,null,"216165095"]
[null,null,null,null,null,null,null,null,null,null,null,"216165099"]
[null,null,null,null,null,null,null,null,null,null,null,"216165102"]
[null,null,null,null,null,null,null,null,null,null,null,"216165108"]
[null,null,null,null,null,null,null,null,null,null,null,"216165109"]
[null,null,null,null,null,null,null,null,null,null,null,"216165111"]
[null,null,null,null,null,null,null,null,null,null,null,"216165121"]
[null,null,null,null,null,null,null,null,null,null,null,"216165122"]
[null,null,null,null,null,null,null,null,null,null,null,214160180]
[null,null,null,null,null,null,null,null,null,null,null,215160075]
[null,null,null,null,null,null,null,null,null,null,null,215160122]
[null,null,null,null,null,null,null,null,null,null,null,215165043]
[null,null,null,null,null,null,null,null,null,null,null,215165118]
[null,null,null,null,null,null,null,null,null,null,null,215165120]
[null,null,null,null,null,null,null,null,null,null,null,216160010]
[null,null,null,null,null,null,null,null,null,null,null,216160029]
[null,null,null,null,null,null,null,null,null,null,null,216160039]
[null,null,null,null,null,null,null,null,null,null,null,216160040]
[null,null,null,null,null,null,null,null,null,null,null,216160061]
[null,null,null,null,null,null,null,null,null,null,null,216160075]
[null,null,null,null,null,null,null,null,null,null,null,216160117]
[null,null,null,null,null,null,null,null,null,null,null,216160133]
[null,null,null,null,null,null,null,null,null,null,null,216160150]
[null,null,null,null,null,null,null,null,null,null,null,216160163]
[null,null,null,null,null,null,null,null,null,null,null,216160169]
[null,null,null,null,null,null,null,null,null,null,null,216165034]
[null,null,null,null,null,null,null,null,null,null,null,216165042]
[null,null,null,null,null,null,null,null,null,null,null,216165061]
[null,null,null,null,null,null,null,null,null,null,null,216165119]
[null,null,null,null,null,null,null,null,null,null,null,217160002]
[null,null,null,null,null,null,null,null,null,null,null,217160009]
[null,null,null,null,null,null,null,null,null,null,null,217160015]
[null,null,null,null,null,null,null,null,null,null,null,217160019]
[null,null,null,null,null,null,null,null,null,null,null,217160033]
[null,null,null,null,null,null,null,null,null,null,null,217165055]
[null,null,null,null,null,null,null,null,null,null,null,218160976]
[null,null,null,null,null,null,null,null,null,null,null,2181601483]
[null,null,null,null,null,null,null,null,null,null,null,2181609760]
[null,null,null,null,null,null,null,null,null,null,null,2181609770]
[null,null,null,null,null,null,null,null,null,null,null,2181609771]
[null,null,null,null,null,null,null,null,null,null,null,2181609773]
[null,null,null,null,null,null,null,null,null,null,null,2181609775]
[null,null,null,null,null,null,null,null,null,null,null,2181609776]
[null,null,null,null,null,null,null,null,null,null,null,2181609777]
[null,null,null,null,null,null,null,null,null,null,null,2181609784]
[null,null,null,null,null,null,null,null,null,null,null,2181609785]
[null,null,null,null,null,null,null,null,null,null,null,2181609786]
[null,null,null,null,null,null,null,null,null,null,null,2181609787]
[null,null,null,null,null,null,null,null,null,null,null,2181609790]
[null,null,null,null,null,null,null,null,null,null,null,2181609791]
[null,null,null,null,null,null,null,null,null,null,null,2181609792]
[null,null,null,null,null,null,null,null,null,null,null,2181609793]
[null,null,null,null,null,null,null,null,null,null,null,2181609794]
[null,null,null,null,null,null,null,null,null,null,null,2181609795]
[null,null,null,null,null,null,null,null,null,null,null,2181609798]
[null,null,null,null,null,null,null,null,null,null,null,2181609800]
[null,null,null,null,null,null,null,null,null,null,null,2181609801]
[null,null,null,null,null,null,null,null,null,null,null,2181609802]
[null,null,null,null,null,null,null,null,null,null,null,2181609803]
[null,null,null,null,null,null,null,null,null,null,null,2181609804]
[null,null,null,null,null,null,null,null,null,null,null,2181609806]
[null,null,null,null,null,null,null,null,null,null,null,2181609807]
[null,null,null,null,null,null,null,null,null,null,null,2181609808]
[null,null,null,null,null,null,null,null,null,null,null,2181609809]
[null,null,null,null,null,null,null,null,null,null,null,2181609810]
[null,null,null,null,null,null,null,null,null,null,null,2181609811]
[null,null,null,null,null,null,null,null,null,null,null,2181609812]
[null,null,null,null,null,null,null,null,null,null,null,2181609813]
[null,null,null,null,null,null,null,null,null,null,null,2181609815]
[null,null,null,null,null,null,null,null,null,null,null,2181609816]
[null,null,null,null,null,null,null,null,null,null,null,2181609818]
[null,null,null,null,null,null,null,null,null,null,null,2181609819]
[null,null,null,null,null,null,null,null,null,null,null,2181609820]
[null,null,null,null,null,null,null,null,null,null,null,2181609821]
[null,null,null,null,null,null,null,null,null,null,null,2181609822]
[null,null,null,null,null,null,null,null,null,null,null,2181609823]
[null,null,null,null,null,null,null,null,null,null,null,2181609824]
[null,null,null,null,null,null,null,null,null,null,null,2181609825]
[null,null,null,null,null,null,null,null,null,null,null,2181609826]
[null,null,null,null,null,null,null,null,null,null,null,2181609827]
[null,null,null,null,null,null,null,null,null,null,null,2181609828]
[null,null,null,null,null,null,null,null,null,null,null,2181609829]
[null,null,null,null,null,null,null,null,null,null,null,2181609830]
[null,null,null,null,null,null,null,null,null,null,null,2181609831]
[null,null,null,null,null,null,null,null,null,null,null,2181609832]
[null,null,null,null,null,null,null,null,null,null,null,2181609834]
[null,null,null,null,null,null,null,null,null,null,null,2181609835]
[null,null,null,null,null,null,null,null,null,null,null,2181609836]
[null,null,null,null,null,null,null,null,null,null,null,2181609837]
[null,null,null,null,null,null,null,null,null,null,null,2181609839]
[null,null,null,null,null,null,null,null,null,null,null,2181609840]
[null,null,null,null,null,null,null,null,null,null,null,2181609841]
[null,null,null,null,null,null,null,null,null,null,null,2181609842]
[null,null,null,null,null,null,null,null,null,null,null,214165030]
[null,null,null,null,null,null,null,null,null,null,null,214165108]
[null,null,null,null,null,null,null,null,null,null,null,215160049]
[null,null,null,null,null,null,null,null,null,null,null,215160071]
[null,null,null,null,null,null,null,null,null,null,null,215160073]
[null,null,null,null,null,null,null,null,null,null,null,215160074]
[null,null,null,null,null,null,null,null,null,null,null,215160096]
[null,null,null,null,null,null,null,null,null,null,null,215160105]
[null,null,null,null,null,null,null,null,null,null,null,215160123]
[null,null,null,null,null,null,null,null,null,null,null,215165085]
[null,null,null,null,null,null,null,null,null,null,null,215165095]
[null,null,null,null,null,null,null,null,null,null,null,216160006]
[null,null,null,null,null,null,null,null,null,null,null,216160035]
[null,null,null,null,null,null,null,null,null,null,null,216160042]
[null,null,null,null,null,null,null,null,null,null,null,216160063]
[null,null,null,null,null,null,null,null,null,null,null,216160068]
[null,null,null,null,null,null,null,null,null,null,null,216160070]
[null,null,null,null,null,null,null,null,null,null,null,216160071]
[null,null,null,null,null,null,null,null,null,null,null,216160078]
[null,null,null,null,null,null,null,null,null,null,null,216160079]
[null,null,null,null,null,null,null,null,null,null,null,216160081]
[null,null,null,null,null,null,null,null,null,null,null,216160093]
[null,null,null,null,null,null,null,null,null,null,null,216160106]
[null,null,null,null,null,null,null,null,null,null,null,216160120]
[null,null,null,null,null,null,null,null,null,null,null,216160129]
[null,null,null,null,null,null,null,null,null,null,null,216160139]
[null,null,null,null,null,null,null,null,null,null,null,216160157]
[null,null,null,null,null,null,null,null,null,null,null,216160159]
[null,null,null,null,null,null,null,null,null,null,null,216165082]
[null,null,null,null,null,null,null,null,null,null,null,216165083]
[null,null,null,null,null,null,null,null,null,null,null,216165107]
[null,null,null,null,null,null,null,null,null,null,null,216165112]
[null,null,null,null,null,null,null,null,null,null,null,216165124]
[null,null,null,null,null,null,null,null,null,null,null,217160014]
[null,null,null,null,null,null,null,null,null,null,null,217160018]
[null,null,null,null,null,null,null,null,null,null,null,217160020]
[null,null,null,null,null,null,null,null,null,null,null,217160026]
[null,null,null,null,null,null,null,null,null,null,null,217160030]
[null,null,null,null,null,null,null,null,null,null,null,217160035]
[null,null,null,null,null,null,null,null,null,null,null,217160036]
[null,null,null,null,null,null,null,null,null,null,null,217160041]
[null,null,null,null,null,null,null,null,null,null,null,217160042]
[null,null,null,null,null,null,null,null,null,null,null,217160047]
[null,null,null,null,null,null,null,null,null,null,null,217160071]
[null,null,null,null,null,null,null,null,null,null,null,217160075]
[null,null,null,null,null,null,null,null,null,null,null,217160076]
[null,null,null,null,null,null,null,null,null,null,null,217160131]
[null,null,null,null,null,null,null,null,null,null,null,217160134]
[null,null,null,null,null,null,null,null,null,null,null,217160149]
[null,null,null,null,null,null,null,null,null,null,null,217160153]
[null,null,null,null,null,null,null,null,null,null,null,217160154]
[null,null,null,null,null,null,null,null,null,null,null,217160155]
[null,null,null,null,null,null,null,null,null,null,null,217160160]
[null,null,null,null,null,null,null,null,null,null,null,217160162]
[null,null,null,null,null,null,null,null,null,null,null,217160167]
[null,null,null,null,null,null,null,null,null,null,null,217160176]
[null,null,null,null,null,null,null,null,null,null,null,217160182]
[null,null,null,null,null,null,null,null,null,null,null,217160185]
[null,null,null,null,null,null,null,null,null,null,null,217160192]
[null,null,null,null,null,null,null,null,null,null,null,217160193]
[null,null,null,null,null,null,null,null,null,null,null,217160196]
[null,null,null,null,null,null,null,null,null,null,null,217165018]
[null,null,null,null,null,null,null,null,null,null,null,217165020]
[null,null,null,null,null,null,null,null,null,null,null,217165021]
[null,null,null,null,null,null,null,null,null,null,null,217165026]
[null,null,null,null,null,null,null,null,null,null,null,217165032]
[null,null,null,null,null,null,null,null,null,null,null,217165034]
[null,null,null,null,null,null,null,null,null,null,null,217165037]
[null,null,null,null,null,null,null,null,null,null,null,217165042]
[null,null,null,null,null,null,null,null,null,null,null,217165046]
[null,null,null,null,null,null,null,null,null,null,null,217165051]
[null,null,null,null,null,null,null,null,null,null,null,217165061]
[null,null,null,null,null,null,null,null,null,null,null,217165064]
[null,null,null,null,null,null,null,null,null,null,null,217165068]
[null,null,null,null,null,null,null,null,null,null,null,217165079]
[null,null,null,null,null,null,null,null,null,null,null,217165082]
[null,null,null,null,null,null,null,null,null,null,null,217165089]
[null,null,null,null,null,null,null,null,null,null,null,217165095]
[null,null,null,null,null,null,null,null,null,null,null,217165096]
[null,null,null,null,null,null,null,null,null,null,null,217165097]
[null,null,null,null,null,null,null,null,null,null,null,217165109]
[null,null,null,null,null,null,null,null,null,null,null,217165110]
[null,null,null,null,null,null,null,null,null,null,null,217165118]
[null,null,null,null,null,null,null,null,null,null,null,2181601453]
[null,null,null,null,null,null,null,null,null,null,null,2181601454]
[null,null,null,null,null,null,null,null,null,null,null,2181601455]
[null,null,null,null,null,null,null,null,null,null,null,2181601456]
[null,null,null,null,null,null,null,null,null,null,null,2181601457]
[null,null,null,null,null,null,null,null,null,null,null,2181601458]
[null,null,null,null,null,null,null,null,null,null,null,2181601459]
[null,null,null,null,null,null,null,null,null,null,null,2181601461]
[null,null,null,null,null,null,null,null,null,null,null,2181601462]
[null,null,null,null,null,null,null,null,null,null,null,2181601463]
[null,null,null,null,null,null,null,null,null,null,null,2181601464]
[null,null,null,null,null,null,null,null,null,null,null,2181601465]
[null,null,null,null,null,null,null,null,null,null,null,2181601466]
[null,null,null,null,null,null,null,null,null,null,null,2181601467]
[null,null,null,null,null,null,null,null,null,null,null,2181601468]
[null,null,null,null,null,null,null,null,null,null,null,2181601469]
[null,null,null,null,null,null,null,null,null,null,null,2181601470]
[null,null,null,null,null,null,null,null,null,null,null,2181601471]
[null,null,null,null,null,null,null,null,null,null,null,2181601472]
[null,null,null,null,null,null,null,null,null,null,null,2181601473]
[null,null,null,null,null,null,null,null,null,null,null,2181601474]
[null,null,null,null,null,null,null,null,null,null,null,2181601476]
[null,null,null,null,null,null,null,null,null,null,null,2181601477]
[null,null,null,null,null,null,null,null,null,null,null,2181601478]
[null,null,null,null,null,null,null,null,null,null,null,2181601479]
[null,null,null,null,null,null,null,null,null,null,null,2181601480]
[null,null,null,null,null,null,null,null,null,null,null,2181601481]
[null,null,null,null,null,null,null,null,null,null,null,2181601482]
[null,null,null,null,null,null,null,null,null,null,null,2181601484]
[null,null,null,null,null,null,null,null,null,null,null,2181601485]
[null,null,null,null,null,null,null,null,null,null,null,2181601487]
[null,null,null,null,null,null,null,null,null,null,null,2181601488]
[null,null,null,null,null,null,null,null,null,null,null,2181601491]
[null,null,null,null,null,null,null,null,null,null,null,2181601492]
[null,null,null,null,null,null,null,null,null,null,null,2181601493]
[null,null,null,null,null,null,null,null,null,null,null,2181601494]
[null,null,null,null,null,null,null,null,null,null,null,2181601496]
[null,null,null,null,null,null,null,null,null,null,null,2181601499]
[null,null,null,null,null,null,null,null,null,null,null,2181601500]
[null,null,null,null,null,null,null,null,null,null,null,2181601501]
[null,null,null,null,null,null,null,null,null,null,null,2181601503]
[null,null,null,null,null,null,null,null,null,null,null,2181601504]
[null,null,null,null,null,null,null,null,null,null,null,2181609767]
[null,null,null,null,null,null,null,null,null,null,null,2181609778]
[null,null,null,null,null,null,null,null,null,null,null,2181609783]
[null,null,null,null,null,null,null,null,null,null,null,2181609799]
[null,null,null,null,null,null,null,null,null,null,null,200002058]
[null,null,null,null,null,null,null,null,null,null,null,216160105]
[null,null,null,null,null,null,null,null,null,null,null,216160147]
[null,null,null,null,null,null,null,null,null,null,null,217160141]
[null,null,null,null,null,null,null,null,null,null,null,217165015]
[null,null,null,null,null,null,null,null,null,null,null,217165059]
[null,null,null,null,null,null,null,null,null,null,null,217165066]
[null,null,null,null,null,null,null,null,null,null,null,217165093]
[null,null,null,null,null,null,null,null,null,null,null,2181609761]
[null,null,null,null,null,null,null,null,null,null,null,2181609796]
[null,null,null,null,null,null,null,null,null,null,null,2181609833]
[null,null,null,null,null,null,null,null,null,null,null,2181609838]
[null,null,null,null,null,null,null,null,null,null,null,215160022]
[null,null,null,null,null,null,null,null,null,null,null,215160033]
[null,null,null,null,null,null,null,null,null,null,null,215160042]
[null,null,null,null,null,null,null,null,null,null,null,216160007]
[null,null,null,null,null,null,null,null,null,null,null,216165008]
[null,null,null,null,null,null,null,null,null,null,null,216165030]
[null,null,null,null,null,null,null,null,null,null,null,217160151]
[null,null,null,null,null,null,null,null,null,null,null,217160164]
[null,null,null,null,null,null,null,null,null,null,null,217160175]
[null,null,null,null,null,null,null,null,null,null,null,217160186]
[null,null,null,null,null,null,null,null,null,null,null,217160190]
[null,null,null,null,null,null,null,null,null,null,null,217165001]
[null,null,null,null,null,null,null,null,null,null,null,217165007]
[null,null,null,null,null,null,null,null,null,null,null,217165056]
[null,null,null,null,null,null,null,null,null,null,null,217165100]
[null,null,null,null,null,null,null,null,null,null,null,2181601489]
[null,null,null,null,null,null,null,null,null,null,null,2181609764]
[null,null,null,null,null,null,null,null,null,null,null,2181609766]
[null,null,null,null,null,null,null,null,null,null,null,2181609768]
[null,null,null,null,null,null,null,null,null,null,null,2181609769]
[null,null,null,null,null,null,null,null,null,null,null,2181609779]
[null,null,null,null,null,null,null,null,null,null,null,2181609797]
[null,null,null,null,null,null,null,null,null,null,null,21760138]
[null,null,null,null,null,null,null,null,null,null,null,213165075]
[null,null,null,null,null,null,null,null,null,null,null,214165034]
[null,null,null,null,null,null,null,null,null,null,null,214165103]
[null,null,null,null,null,null,null,null,null,null,null,215160015]
[null,null,null,null,null,null,null,null,null,null,null,215160081]
[null,null,null,null,null,null,null,null,null,null,null,215160120]
[null,null,null,null,null,null,null,null,null,null,null,215165078]
[null,null,null,null,null,null,null,null,null,null,null,215165096]
[null,null,null,null,null,null,null,null,null,null,null,215165100]
[null,null,null,null,null,null,null,null,null,null,null,215165104]
[null,null,null,null,null,null,null,null,null,null,null,215165124]
[null,null,null,null,null,null,null,null,null,null,null,216160001]
[null,null,null,null,null,null,null,null,null,null,null,216160003]
[null,null,null,null,null,null,null,null,null,null,null,216160012]
[null,null,null,null,null,null,null,null,null,null,null,216160015]
[null,null,null,null,null,null,null,null,null,null,null,216160023]
[null,null,null,null,null,null,null,null,null,null,null,216160028]
[null,null,null,null,null,null,null,null,null,null,null,216160101]
[null,null,null,null,null,null,null,null,null,null,null,216160136]
[null,null,null,null,null,null,null,null,null,null,null,216160162]
[null,null,null,null,null,null,null,null,null,null,null,216160164]
[null,null,null,null,null,null,null,null,null,null,null,216165009]
[null,null,null,null,null,null,null,null,null,null,null,216165059]
[null,null,null,null,null,null,null,null,null,null,null,216165084]
[null,null,null,null,null,null,null,null,null,null,null,216165127]
[null,null,null,null,null,null,null,null,null,null,null,217160063]
[null,null,null,null,null,null,null,null,null,null,null,217160066]
[null,null,null,null,null,null,null,null,null,null,null,217160067]
[null,null,null,null,null,null,null,null,null,null,null,217160068]
[null,null,null,null,null,null,null,null,null,null,null,217160077]
[null,null,null,null,null,null,null,null,null,null,null,217160137]
[null,null,null,null,null,null,null,null,null,null,null,217160152]
[null,null,null,null,null,null,null,null,null,null,null,217160156]
[null,null,null,null,null,null,null,null,null,null,null,217160157]
[null,null,null,null,null,null,null,null,null,null,null,217160159]
[null,null,null,null,null,null,null,null,null,null,null,217160163]
[null,null,null,null,null,null,null,null,null,null,null,217160173]
[null,null,null,null,null,null,null,null,null,null,null,217160188]
[null,null,null,null,null,null,null,null,null,null,null,217160194]
[null,null,null,null,null,null,null,null,null,null,null,217160198]
[null,null,null,null,null,null,null,null,null,null,null,217165004]
[null,null,null,null,null,null,null,null,null,null,null,217165005]
[null,null,null,null,null,null,null,null,null,null,null,217165014]
[null,null,null,null,null,null,null,null,null,null,null,217165016]
[null,null,null,null,null,null,null,null,null,null,null,217165022]
[null,null,null,null,null,null,null,null,null,null,null,217165030]
[null,null,null,null,null,null,null,null,null,null,null,217165031]
[null,null,null,null,null,null,null,null,null,null,null,217165050]
[null,null,null,null,null,null,null,null,null,null,null,217165062]
[null,null,null,null,null,null,null,null,null,null,null,217165063]
[null,null,null,null,null,null,null,null,null,null,null,217165067]
[null,null,null,null,null,null,null,null,null,null,null,217165069]
[null,null,null,null,null,null,null,null,null,null,null,217165073]
[null,null,null,null,null,null,null,null,null,null,null,217165085]
[null,null,null,null,null,null,null,null,null,null,null,217165099]
[null,null,null,null,null,null,null,null,null,null,null,217165101]
[null,null,null,null,null,null,null,null,null,null,null,217165105]
[null,null,null,null,null,null,null,null,null,null,null,217165107]
[null,null,null,null,null,null,null,null,null,null,null,217165108]
[null,null,null,null,null,null,null,null,null,null,null,217165111]
[null,null,null,null,null,null,null,null,null,null,null,217165112]
[null,null,null,null,null,null,null,null,null,null,null,217165117]
[null,null,null,null,null,null,null,null,null,null,null,2181609781]
[null,null,null,null,null,null,null,null,null,null,null,2181609782]
[null,null,null,null,null,null,null,null,null,null,null,213165027]
[null,null,null,null,null,null,null,null,null,null,null,214160026]
[null,null,null,null,null,null,null,null,null,null,null,214160078]
[null,null,null,null,null,null,null,null,null,null,null,214160092]
[null,null,null,null,null,null,null,null,null,null,null,214160127]
[null,null,null,null,null,null,null,null,null,null,null,214160129]
[null,null,null,null,null,null,null,null,null,null,null,214165046]
[null,null,null,null,null,null,null,null,null,null,null,214165068]
[null,null,null,null,null,null,null,null,null,null,null,214165084]
[null,null,null,null,null,null,null,null,null,null,null,214165111]
[null,null,null,null,null,null,null,null,null,null,null,215160013]
[null,null,null,null,null,null,null,null,null,null,null,215160040]
[null,null,null,null,null,null,null,null,null,null,null,215160055]
[null,null,null,null,null,null,null,null,null,null,null,215160121]
[null,null,null,null,null,null,null,null,null,null,null,215165001]
[null,null,null,null,null,null,null,null,null,null,null,215165025]
[null,null,null,null,null,null,null,null,null,null,null,215165026]
[null,null,null,null,null,null,null,null,null,null,null,215165060]
[null,null,null,null,null,null,null,null,null,null,null,215165079]
[null,null,null,null,null,null,null,null,null,null,null,215165090]
[null,null,null,null,null,null,null,null,null,null,null,215165127]
[null,null,null,null,null,null,null,null,null,null,null,215165135]
[null,null,null,null,null,null,null,null,null,null,null,215165136]
[null,null,null,null,null,null,null,null,null,null,null,216160026]
[null,null,null,null,null,null,null,null,null,null,null,216160047]
[null,null,null,null,null,null,null,null,null,null,null,216160054]
[null,null,null,null,null,null,null,null,null,null,null,216160069]
[null,null,null,null,null,null,null,null,null,null,null,216160097]
[null,null,null,null,null,null,null,null,null,null,null,216160103]
[null,null,null,null,null,null,null,null,null,null,null,216160140]
[null,null,null,null,null,null,null,null,null,null,null,216165003]
[null,null,null,null,null,null,null,null,null,null,null,216165044]
[null,null,null,null,null,null,null,null,null,null,null,216165054]
[null,null,null,null,null,null,null,null,null,null,null,216165063]
[null,null,null,null,null,null,null,null,null,null,null,216165075]
[null,null,null,null,null,null,null,null,null,null,null,216165093]
[null,null,null,null,null,null,null,null,null,null,null,216165096]
[null,null,null,null,null,null,null,null,null,null,null,216165120]
[null,null,null,null,null,null,null,null,null,null,null,217160001]
[null,null,null,null,null,null,null,null,null,null,null,217160006]
[null,null,null,null,null,null,null,null,null,null,null,217165006]
[null,null,null,null,null,null,null,null,null,null,null,217165008]
[null,null,null,null,null,null,null,null,null,null,null,217165012]
[null,null,null,null,null,null,null,null,null,null,null,217165025]
[null,null,null,null,null,null,null,null,null,null,null,217165047]
[null,null,null,null,null,null,null,null,null,null,null,217165052]
[null,null,null,null,null,null,null,null,null,null,null,2181609762]
[null,null,null,null,null,null,null,null,null,null,null,21816098012]
[null,null,null,null,null,null,null,null,null,null,null,214160058]
[null,null,null,null,null,null,null,null,null,null,null,214160195]
[null,null,null,null,null,null,null,null,null,null,null,214165085]
[null,null,null,null,null,null,null,null,null,null,null,215160004]
[null,null,null,null,null,null,null,null,null,null,null,215160018]
[null,null,null,null,null,null,null,null,null,null,null,215165122]
[null,null,null,null,null,null,null,null,null,null,null,216160067]
[null,null,null,null,null,null,null,null,null,null,null,216165097]
[null,null,null,null,null,null,null,null,null,null,null,217160138]
[null,null,null,null,null,null,null,null,null,null,null,217165080]
[null,null,null,null,null,null,null,null,null,null,null,2171650201]
[null,null,null,null,null,null,null,null,null,null,null,212105037]
[null,null,null,null,null,null,null,null,null,null,null,215160025]
[null,null,null,null,null,null,null,null,null,null,null,216165094]
[null,null,null,null,null,null,null,null,null,null,null,217165071]
[null,null,null,null,null,null,null,null,null,null,null,217165081]
[null,null,null,null,null,null,null,null,null,null,null,217165087]
[null,null,null,null,null,null,null,null,null,null,null,217165106]
[null,null,null,null,null,null,null,null,null,null,null,21760157]
[null,null,null,null,null,null,null,null,null,null,null,214165104]
[null,null,null,null,null,null,null,null,null,null,null,217165003]
[null,null,null,null,null,null,null,null,null,null,null,2171650171]
[null,null,null,null,null,null,null,null,null,null,null,2171650186]
[null,null,null,null,null,null,null,null,null,null,null,213165007]
[null,null,null,null,null,null,null,null,null,null,null,213165023]
[null,null,null,null,null,null,null,null,null,null,null,213165029]
[null,null,null,null,null,null,null,null,null,null,null,214160102]
[null,null,null,null,null,null,null,null,null,null,null,214160112]
[null,null,null,null,null,null,null,null,null,null,null,214160140]
[null,null,null,null,null,null,null,null,null,null,null,214160141]
[null,null,null,null,null,null,null,null,null,null,null,214160173]
[null,null,null,null,null,null,null,null,null,null,null,214160176]
[null,null,null,null,null,null,null,null,null,null,null,214160183]
[null,null,null,null,null,null,null,null,null,null,null,214165016]
[null,null,null,null,null,null,null,null,null,null,null,214165035]
[null,null,null,null,null,null,null,null,null,null,null,214165047]
[null,null,null,null,null,null,null,null,null,null,null,214165075]
[null,null,null,null,null,null,null,null,null,null,null,214165082]
[null,null,null,null,null,null,null,null,null,null,null,214165092]
[null,null,null,null,null,null,null,null,null,null,null,214165101]
[null,null,null,null,null,null,null,null,null,null,null,214165102]
[null,null,null,null,null,null,null,null,null,null,null,215160017]
[null,null,null,null,null,null,null,null,null,null,null,215160029]
[null,null,null,null,null,null,null,null,null,null,null,215160031]
[null,null,null,null,null,null,null,null,null,null,null,215160050]
[null,null,null,null,null,null,null,null,null,null,null,215160092]
[null,null,null,null,null,null,null,null,null,null,null,215160109]
[null,null,null,null,null,null,null,null,null,null,null,215165004]
[null,null,null,null,null,null,null,null,null,null,null,215165006]
[null,null,null,null,null,null,null,null,null,null,null,215165009]
[null,null,null,null,null,null,null,null,null,null,null,215165011]
[null,null,null,null,null,null,null,null,null,null,null,215165012]
[null,null,null,null,null,null,null,null,null,null,null,215165019]
[null,null,null,null,null,null,null,null,null,null,null,215165021]
[null,null,null,null,null,null,null,null,null,null,null,215165050]
[null,null,null,null,null,null,null,null,null,null,null,215165061]
[null,null,null,null,null,null,null,null,null,null,null,215165066]
[null,null,null,null,null,null,null,null,null,null,null,215165074]
[null,null,null,null,null,null,null,null,null,null,null,215165091]
[null,null,null,null,null,null,null,null,null,null,null,215165093]
[null,null,null,null,null,null,null,null,null,null,null,215165102]
[null,null,null,null,null,null,null,null,null,null,null,215165117]
[null,null,null,null,null,null,null,null,null,null,null,215165125]
[null,null,null,null,null,null,null,null,null,null,null,216160004]
[null,null,null,null,null,null,null,null,null,null,null,216160037]
[null,null,null,null,null,null,null,null,null,null,null,216160038]
[null,null,null,null,null,null,null,null,null,null,null,216160080]
[null,null,null,null,null,null,null,null,null,null,null,216160086]
[null,null,null,null,null,null,null,null,null,null,null,216160099]
[null,null,null,null,null,null,null,null,null,null,null,216165006]
[null,null,null,null,null,null,null,null,null,null,null,216165007]
[null,null,null,null,null,null,null,null,null,null,null,216165033]
[null,null,null,null,null,null,null,null,null,null,null,216165037]
[null,null,null,null,null,null,null,null,null,null,null,216165038]
[null,null,null,null,null,null,null,null,null,null,null,216165060]
[null,null,null,null,null,null,null,null,null,null,null,216165062]
[null,null,null,null,null,null,null,null,null,null,null,216165067]
[null,null,null,null,null,null,null,null,null,null,null,216165098]
[null,null,null,null,null,null,null,null,null,null,null,216165105]
[null,null,null,null,null,null,null,null,null,null,null,216165108]
[null,null,null,null,null,null,null,null,null,null,null,214160106]
[null,null,null,null,null,null,null,null,null,null,null,216160024]
[null,null,null,null,null,null,null,null,null,null,null,217165115]
[null,null,null,null,null,null,null,null,null,null,null,2181609780]
[null,null,null,null,null,null,null,null,null,null,null,214160049]
[null,null,null,null,null,null,null,null,null,null,null,216160138]
[null,null,null,null,null,null,null,null,null,null,null,217165120]
[null,null,null,null,null,null,null,null,null,null,null,216165092]
[null,null,null,null,null,null,null,null,null,null,null,215165094]
[null,null,null,null,null,null,null,null,null,null,null,215165098]
[null,null,null,null,null,null,null,null,null,null,null,215165139]
[null,null,null,null,null,null,null,null,null,null,null,216160011]
[null,null,null,null,null,null,null,null,null,null,null,216160014]
[null,null,null,null,null,null,null,null,null,null,null,216160145]
[null,null,null,null,null,null,null,null,null,null,null,216165065]
[null,null,null,null,null,null,null,null,null,null,null,216165099]
[null,null,null,null,null,null,null,null,null,null,null,200000004]
[null,null,null,null,null,null,null,null,null,null,null,216160172]
[null,null,null,null,null,null,null,null,null,null,null,216165015]
[null,null,null,null,null,null,null,null,null,null,null,215165033]
[null,null,null,null,null,null,null,null,null,null,null,215160043]
[null,null,null,null,null,null,null,null,null,null,null,215160046]
[null,null,null,null,null,null,null,null,null,null,null,215161525]
[null,null,null,null,null,null,null,null,null,null,null,215165126]
[null,null,null,null,null,null,null,null,null,null,null,215165134]
[null,null,null,null,null,null,null,null,null,null,null,216160062]
[null,null,null,null,null,null,null,null,null,null,null,216165020]
[null,null,null,null,null,null,null,null,null,null,null,216165100]
[null,null,null,null,null,null,null,null,null,null,null,216160022]
[null,null,null,null,null,null,null,null,null,null,null,216165053]
[null,null,null,null,null,null,null,null,null,null,null,216165121]
[null,null,null,null,null,null,null,null,null,null,null,2181609805]
[null,null,null,null,null,null,null,null,null,null,null,2181609817]
[null,null,null,null,null,null,null,null,null,null,null,21881609827]
[null,null,null,null,null,null,null,null,null,null,null,214160030]
[null,null,null,null,null,null,null,null,null,null,null,217160189]
[null,null,null,null,null,null,null,null,null,null,null,217160749]
[null,null,null,null,null,null,null,null,null,null,null,215165055]
[null,null,null,null,null,null,null,null,null,null,null,216165076]
[null,null,null,null,null,null,null,null,null,null,null,217165098]
[null,null,null,null,null,null,null,null,null,null,null,217165104]
[null,null,null,null,null,null,null,null,null,null,null,2181600612]
[null,null,null,null,null,null,null,null,null,null,null,2191602460]
[null,null,null,null,null,null,null,null,null,null,null,2191602462]
[null,null,null,null,null,null,null,null,null,null,null,2191602466]
[null,null,null,null,null,null,null,null,null,null,null,2191602467]
[null,null,null,null,null,null,null,null,null,null,null,2191602470]
[null,null,null,null,null,null,null,null,null,null,null,2191602471]
[null,null,null,null,null,null,null,null,null,null,null,2191602472]
[null,null,null,null,null,null,null,null,null,null,null,2191602473]
[null,null,null,null,null,null,null,null,null,null,null,2191602474]
[null,null,null,null,null,null,null,null,null,null,null,2191602475]
[null,null,null,null,null,null,null,null,null,null,null,2191602476]
[null,null,null,null,null,null,null,null,null,null,null,2191602478]
[null,null,null,null,null,null,null,null,null,null,null,2191602479]
[null,null,null,null,null,null,null,null,null,null,null,2191602480]
[null,null,null,null,null,null,null,null,null,null,null,2191602481]
[null,null,null,null,null,null,null,null,null,null,null,2191602482]
[null,null,null,null,null,null,null,null,null,null,null,2191602483]
[null,null,null,null,null,null,null,null,null,null,null,2191602484]
[null,null,null,null,null,null,null,null,null,null,null,2191602485]
[null,null,null,null,null,null,null,null,null,null,null,2191602487]
[null,null,null,null,null,null,null,null,null,null,null,2191602488]
[null,null,null,null,null,null,null,null,null,null,null,2191602489]
[null,null,null,null,null,null,null,null,null,null,null,2191602490]
[null,null,null,null,null,null,null,null,null,null,null,2191602491]
[null,null,null,null,null,null,null,null,null,null,null,2191602492]
[null,null,null,null,null,null,null,null,null,null,null,2191602493]
[null,null,null,null,null,null,null,null,null,null,null,2191602494]
[null,null,null,null,null,null,null,null,null,null,null,2191602495]
[null,null,null,null,null,null,null,null,null,null,null,2191602496]
[null,null,null,null,null,null,null,null,null,null,null,2191606126]
[null,null,null,null,null,null,null,null,null,null,null,215160023]
[null,null,null,null,null,null,null,null,null,null,null,215160102]
[null,null,null,null,null,null,null,null,null,null,null,215160116]
[null,null,null,null,null,null,null,null,null,null,null,215165032]
[null,null,null,null,null,null,null,null,null,null,null,217165092]
[null,null,null,null,null,null,null,null,null,null,null,2191602464]
[null,null,null,null,null,null,null,null,null,null,null,2191602465]
[null,null,null,null,null,null,null,null,null,null,null,2191602468]
[null,null,null,null,null,null,null,null,null,null,null,2191602469]
[null,null,null,null,null,null,null,null,null,null,null,2191602477]
[null,null,null,null,null,null,null,null,null,null,null,219162462]
[null,null,null,null,null,null,null,null,null,null,null,2181609765]
[null,null,null,null,null,null,null,null,null,null,null,215160088]
[null,null,null,null,null,null,null,null,null,null,null,215165082]
[null,null,null,null,null,null,null,null,null,null,null,217165103]
[null,null,null,null,null,null,null,null,null,null,null,214165109]
[null,null,null,null,null,null,null,null,null,null,null,216165004]
[null,null,null,null,null,null,null,null,null,null,null,2191602461]
[null,null,null,null,null,null,null,null,null,null,null,214165071]
[null,null,null,null,null,null,null,null,null,null,null,217160029]
[null,null,null,null,null,null,null,null,null,null,null,2161601470]
[null,null,null,null,null,null,null,null,null,null,null,2181601979]
[null,null,null,null,null,null,null,null,null,null,null,2181606768]
[null,null,null,null,null,null,null,null,null,null,null,2181607967]
[null,null,null,null,null,null,null,null,null,null,null,2181608384]
[null,null,null,null,null,null,null,null,null,null,null,217160178]
[null,null,null,null,null,null,null,null,null,null,null,218160480]
[null,null,null,null,null,null,null,null,null,null,null,218160975]
[null,null,null,null,null,null,null,null,null,null,null,211165040]
[null,null,null,null,null,null,null,null,null,null,null,212165049]
[null,null,null,null,null,null,null,null,null,null,null,214160090]
[null,null,null,null,null,null,null,null,null,null,null,214165093]
[null,null,null,null,null,null,null,null,null,null,null,215165065]
[null,null,null,null,null,null,null,null,null,null,null,215165113]
[null,null,null,null,null,null,null,null,null,null,null,217160081]
[null,null,null,null,null,null,null,null,null,null,null,2181601562]
[null,null,null,null,null,null,null,null,null,null,null,215160062]
[null,null,null,null,null,null,null,null,null,null,null,216165072]
[null,null,null,null,null,null,null,null,null,null,null,217195098]
[null,null,null,null,null,null,null,null,null,null,null,216016163]
[null,null,null,null,null,null,null,null,null,null,null,2181601497]
[null,null,null,null,null,null,null,null,null,null,null,2191602486]
[null,null,null,null,null,null,null,null,null,null,null,2191605156]
[null,null,null,null,null,null,null,null,null,null,null,2191605592]
[null,null,null,null,null,null,null,null,null,null,null,2200000052]
[null,null,null,null,null,null,null,null,null,null,null,2201600717]
[null,null,null,null,null,null,null,null,null,null,null,2201600720]
[null,null,null,null,null,null,null,null,null,null,null,2201600721]
[null,null,null,null,null,null,null,null,null,null,null,2201600722]
[null,null,null,null,null,null,null,null,null,null,null,2201600724]
[null,null,null,null,null,null,null,null,null,null,null,2201600725]
[null,null,null,null,null,null,null,null,null,null,null,2201600727]
[null,null,null,null,null,null,null,null,null,null,null,2201600728]
[null,null,null,null,null,null,null,null,null,null,null,2201600730]
[null,null,null,null,null,null,null,null,null,null,null,2201600731]
[null,null,null,null,null,null,null,null,null,null,null,2201600732]
[null,null,null,null,null,null,null,null,null,null,null,2201600733]
[null,null,null,null,null,null,null,null,null,null,null,2201600735]
[null,null,null,null,null,null,null,null,null,null,null,2201600736]
[null,null,null,null,null,null,null,null,null,null,null,2201600737]
[null,null,null,null,null,null,null,null,null,null,null,2201600738]
[null,null,null,null,null,null,null,null,null,null,null,2201600739]
[null,null,null,null,null,null,null,null,null,null,null,2201600740]
[null,null,null,null,null,null,null,null,null,null,null,2201600741]
[null,null,null,null,null,null,null,null,null,null,null,2201600743]
[null,null,null,null,null,null,null,null,null,null,null,2201600744]
[null,null,null,null,null,null,null,null,null,null,null,2201600746]
[null,null,null,null,null,null,null,null,null,null,null,2201600747]
[null,null,null,null,null,null,null,null,null,null,null,2201600748]
[null,null,null,null,null,null,null,null,null,null,null,2201600749]
[null,null,null,null,null,null,null,null,null,null,null,2201600750]
[null,null,null,null,null,null,null,null,null,null,null,2201600752]
[null,null,null,null,null,null,null,null,null,null,null,2201600754]
[null,null,null,null,null,null,null,null,null,null,null,2201600755]
[null,null,null,null,null,null,null,null,null,null,null,2201600756]
[null,null,null,null,null,null,null,null,null,null,null,2201600758]
[null,null,null,null,null,null,null,null,null,null,null,2201601605]
[null,null,null,null,null,null,null,null,null,null,null,2201601606]
[null,null,null,null,null,null,null,null,null,null,null,214165070]
[null,null,null,null,null,null,null,null,null,null,null,215160076]
[null,null,null,null,null,null,null,null,null,null,null,215160115]
[null,null,null,null,null,null,null,null,null,null,null,215165057]
[null,null,null,null,null,null,null,null,null,null,null,215165092]
[null,null,null,null,null,null,null,null,null,null,null,215165101]
[null,null,null,null,null,null,null,null,null,null,null,215165138]
[null,null,null,null,null,null,null,null,null,null,null,216160058]
[null,null,null,null,null,null,null,null,null,null,null,216160064]
[null,null,null,null,null,null,null,null,null,null,null,216160116]
[null,null,null,null,null,null,null,null,null,null,null,216160170]
[null,null,null,null,null,null,null,null,null,null,null,216165039]
[null,null,null,null,null,null,null,null,null,null,null,216165047]
[null,null,null,null,null,null,null,null,null,null,null,216165122]
[null,null,null,null,null,null,null,null,null,null,null,2191602570]
[null,null,null,null,null,null,null,null,null,null,null,216160153]
[null,null,null,null,null,null,null,null,null,null,null,2181619760]
[null,null,null,null,null,null,null,null,null,null,null,2201600718]
[null,null,null,null,null,null,null,null,null,null,null,213165060]
[null,null,null,null,null,null,null,null,null,null,null,214165077]
[null,null,null,null,null,null,null,null,null,null,null,218161463]
[null,null,null,null,null,null,null,null,null,null,null,2151600225]
[null,null,null,null,null,null,null,null,null,null,null,216160137]
[null,null,null,null,null,null,null,null,null,null,null,217160136]
[null,null,null,null,null,null,null,null,null,null,null,217165029]
[null,null,null,null,null,null,null,null,null,null,null,2161600162]
[null,null,null,null,null,null,null,null,null,null,null,2181603797]
[null,null,null,null,null,null,null,null,null,null,null,2200000010]
[null,null,null,null,null,null,null,null,null,null,null,2200000057]
[null,null,null,null,null,null,null,null,null,null,null,219162476]
[null,null,null,null,null,null,null,null,null,null,null,2191612468]
[null,null,null,null,null,null,null,null,null,null,null,21911602570]
[null,null,null,null,null,null,null,null,null,null,null,216165073]
[null,null,null,null,null,null,null,null,null,null,null,2181607230]
[null,null,null,null,null,null,null,null,null,null,null,2201600729]
[null,null,null,null,null,null,null,null,null,null,null,2201600745]
[null,null,null,null,null,null,null,null,null,null,null,2201600753]
[null,null,null,null,null,null,null,null,null,null,null,2201602433]
[null,null,null,null,null,null,null,null,null,null,null,2201602434]
[null,null,null,null,null,null,null,null,null,null,null,2201602437]
[null,null,null,null,null,null,null,null,null,null,null,2201602438]
[null,null,null,null,null,null,null,null,null,null,null,2201602439]
[null,null,null,null,null,null,null,null,null,null,null,2201602440]
[null,null,null,null,null,null,null,null,null,null,null,2201602441]
[null,null,null,null,null,null,null,null,null,null,null,2201602442]
[null,null,null,null,null,null,null,null,null,null,null,2201602443]
[null,null,null,null,null,null,null,null,null,null,null,2201602444]
[null,null,null,null,null,null,null,null,null,null,null,2201602445]
[null,null,null,null,null,null,null,null,null,null,null,2201602446]
[null,null,null,null,null,null,null,null,null,null,null,2201602447]
[null,null,null,null,null,null,null,null,null,null,null,2201602448]
[null,null,null,null,null,null,null,null,null,null,null,2201602449]
[null,null,null,null,null,null,null,null,null,null,null,2201602450]
[null,null,null,null,null,null,null,null,null,null,null,2201602451]
[null,null,null,null,null,null,null,null,null,null,null,2201602452]
[null,null,null,null,null,null,null,null,null,null,null,2201602453]
[null,null,null,null,null,null,null,null,null,null,null,216165018]
[null,null,null,null,null,null,null,null,null,null,null,2201602431]
[null,null,null,null,null,null,null,null,null,null,null,2201602432]
[null,null,null,null,null,null,null,null,null,null,null,2201602436]
[null,null,null,null,null,null,null,null,null,null,null,22016002443]
[null,null,null,null,null,null,null,null,null,null,null,215165054]
[null,null,null,null,null,null,null,null,null,null,null,215160114]
[null,null,null,null,null,null,null,null,null,null,null,20850413]
[null,null,null,null,null,null,null,null,null,null,null,214165141]
[null,null,null,null,null,null,null,null,null,null,null,217169175]
[null,null,null,null,null,null,null,null,null,null,null,221600729]
[null,null,null,null,null,null,null,null,null,null,null,221602433]
[null,null,null,null,null,null,null,null,null,null,null,22016001747]
[null,null,null,null,null,null,null,null,null,null,null,2181608797]
[null,null,null,null,null,null,null,null,null,null,null,2201604893]
[null,null,null,null,null,null,null,null,null,null,null,214160029]
[null,null,null,null,null,null,null,null,null,null,null,2201603442]
[null,null,null,null,null,null,null,null,null,null,null,218601458]
[null,null,null,null,null,null,null,null,null,null,null," 215160114 "]
[null,null,null,null,null,null,null,null,null,null,null," 215160116 "]
[null,null,null,null,null,null,null,null,null,null,null," 216160006 "]
[null,null,null,null,null,null,null,null,null,null,null," 216160147 "]
[null,null,null,null,null,null,null,null,null,null,null," 2181607230 "]
[null,null,null,null,null,null,null,null,null,null,null," 2181607857 "]
[null,null,null,null,null,null,null,null,null,null,null," 2181609807 "]
[null,null,null,null,null,null,null,null,null,null,null," 2191606176 "]
[null,null,null,null,null,null,null,null,null,null,null," 2201600723 "]
[null,null,null,null,null,null,null,null,null,null,null," 2201602435 "]
[null,null,null,null,null,null,null,null,null,null,null," 2201602438 "]
[null,null,null,null,null,null,null,null,null,null,null," 2201602442 "]
[null,null,null,null,null,null,null,null,null,null,null," 2201604893 "]
[null,null,null,null,null,null,null,null,null,null,null," 2201606106 "]
[null,null,null,null,null,null,null,null,null,null,null," 2201606150 "]
[null,null,null,null,null,null,null,null,null,null,null," 2201610561 "]
[null,null,null,null,null,null,null,null,null,null,null," 2201610562 "]
[null,null,null,null,null,null,null,null,null,null,null," 2201610563 "]
[null,null,null,null,null,null,null,null,null,null,null," 2201610564 "]
[null,null,null,null,null,null,null,null,null,null,null," 2201610566 "]
[null,null,null,null,null,null,null,null,null,null,null," 2201610567 "]
[null,null,null,null,null,null,null,null,null,null,null," 2201610568 "]
[null,null,null,null,null,null,null,null,null,null,null," 2201610569 "]
[null,null,null,null,null,null,null,null,null,null,null,2211657942]
[null,null,null,null,null,null,null,null,null,null,null,2211657953]
[null,null,null,null,null,null,null,null,null,null,null," 215165054 "]
[null,null,null,null,null,null,null,null,null,null,null," 215165082 "]
[null,null,null,null,null,null,null,null,null,null,null," 215165122 "]
[null,null,null,null,null,null,null,null,null,null,null," 216160004 "]
[null,null,null,null,null,null,null,null,null,null,null," 216160162 "]
[null,null,null,null,null,null,null,null,null,null,null," 216165008 "]
[null,null,null,null,null,null,null,null,null,null,null," 216165044 "]
[null,null,null,null,null,null,null,null,null,null,null," 216165062 "]
[null,null,null,null,null,null,null,null,null,null,null," 216165073 "]
[null,null,null,null,null,null,null,null,null,null,null," 216165120 "]
[null,null,null,null,null,null,null,null,null,null,null," 217160019 "]
[null,null,null,null,null,null,null,null,null,null,null," 217160137 "]
[null,null,null,null,null,null,null,null,null,null,null," 217165012 "]
[null,null,null,null,null,null,null,null,null,null,null," 2181609760 "]
[null,null,null,null,null,null,null,null,null,null,null," 2181609791 "]
[null,null,null,null,null,null,null,null,null,null,null," 2181609793 "]
[null,null,null,null,null,null,null,null,null,null,null," 2181609798 "]
[null,null,null,null,null,null,null,null,null,null,null," 2191602466 "]
[null,null,null,null,null,null,null,null,null,null,null," 2191602485 "]
[null,null,null,null,null,null,null,null,null,null,null," 2191602494 "]
[null,null,null,null,null,null,null,null,null,null,null," 2201600724 "]
[null,null,null,null,null,null,null,null,null,null,null," 2201600729 "]
[null,null,null,null,null,null,null,null,null,null,null," 2201600739 "]
[null,null,null,null,null,null,null,null,null,null,null," 2201600743 "]
[null,null,null,null,null,null,null,null,null,null,null," 2201600744 "]
[null,null,null,null,null,null,null,null,null,null,null," 2201600745 "]
[null,null,null,null,null,null,null,null,null,null,null," 2201600753 "]
[null,null,null,null,null,null,null,null,null,null,null," 2201600754 "]
[null,null,null,null,null,null,null,null,null,null,null," 2201602433 "]
[null,null,null,null,null,null,null,null,null,null,null," 2201602437 "]
[null,null,null,null,null,null,null,null,null,null,null," 2201602439 "]
[null,null,null,null,null,null,null,null,null,null,null," 2201602440 "]
[null,null,null,null,null,null,null,null,null,null,null," 2201602441 "]
[null,null,null,null,null,null,null,null,null,null,null," 2201602443 "]
[null,null,null,null,null,null,null,null,null,null,null," 2201602444 "]
[null,null,null,null,null,null,null,null,null,null,null," 2201602446 "]
[null,null,null,null,null,null,null,null,null,null,null," 2201602447 "]
[null,null,null,null,null,null,null,null,null,null,null," 2201602448 "]
[null,null,null,null,null,null,null,null,null,null,null," 2201602449 "]
[null,null,null,null,null,null,null,null,null,null,null," 2201602450 "]
[null,null,null,null,null,null,null,null,null,null,null," 2201602452 "]
[null,null,null,null,null,null,null,null,null,null,null," 2201602453 "]
[null,null,null,null,null,null,null,null,null,null,null,2211656764]
[null,null,null,null,null,null,null,null,null,null,null," 2181609803 "]
[null,null,null,null,null,null,null,null,null,null,null," 216160071 "]
[null,null,null,null,null,null,null,null,null,null,null," 2181600612 "]
[null,null,null,null,null,null,null,null,null,null,null," 2181609809 "]
[null,null,null,null,null,null,null,null,null,null,null," 2191602483 "]
[null,null,null,null,null,null,null,null,null,null,null," 2201600721 "]
[null,null,null,null,null,null,null,null,null,null,null," 215160042 "]
[null,null,null,null,null,null,null,null,null,null,null," 216160010 "]
[null,null,null,null,null,null,null,null,null,null,null," 216160061 "]
[null,null,null,null,null,null,null,null,null,null,null," 216160117 "]
[null,null,null,null,null,null,null,null,null,null,null," 216165107 "]
[null,null,null,null,null,null,null,null,null,null,null," 216165124 "]
[null,null,null,null,null,null,null,null,null,null,null," 217160018 "]
[null,null,null,null,null,null,null,null,null,null,null," 217160153 "]
[null,null,null,null,null,null,null,null,null,null,null," 217160160 "]
[null,null,null,null,null,null,null,null,null,null,null," 217160176 "]
[null,null,null,null,null,null,null,null,null,null,null," 217160196 "]
[null,null,null,null,null,null,null,null,null,null,null," 217165056 "]
[null,null,null,null,null,null,null,null,null,null,null," 217165066 "]
[null,null,null,null,null,null,null,null,null,null,null," 217165087 "]
[null,null,null,null,null,null,null,null,null,null,null," 217165110 "]
[null,null,null,null,null,null,null,null,null,null,null," 2181609777 "]
[null,null,null,null,null,null,null,null,null,null,null," 2181609817 "]
[null,null,null,null,null,null,null,null,null,null,null," 2181609823 "]
[null,null,null,null,null,null,null,null,null,null,null," 2191602486 "]
[null,null,null,null,null,null,null,null,null,null,null," 2191602496 "]
[null,null,null,null,null,null,null,null,null,null,null," 2191602661 "]
[null,null,null,null,null,null,null,null,null,null,null," 2191605156 "]
[null,null,null,null,null,null,null,null,null,null,null," 2201600718 "]
[null,null,null,null,null,null,null,null,null,null,null," 2201600720 "]
[null,null,null,null,null,null,null,null,null,null,null," 2201600722 "]
[null,null,null,null,null,null,null,null,null,null,null," 2201600725 "]
[null,null,null,null,null,null,null,null,null,null,null," 2201600728 "]
[null,null,null,null,null,null,null,null,null,null,null," 2201600730 "]
[null,null,null,null,null,null,null,null,null,null,null," 2201600731 "]
[null,null,null,null,null,null,null,null,null,null,null," 2201600732 "]
[null,null,null,null,null,null,null,null,null,null,null," 2201600733 "]
[null,null,null,null,null,null,null,null,null,null,null," 2201600735 "]
[null,null,null,null,null,null,null,null,null,null,null," 2201600736 "]
[null,null,null,null,null,null,null,null,null,null,null," 2201600737 "]
[null,null,null,null,null,null,null,null,null,null,null," 2201600738 "]
[null,null,null,null,null,null,null,null,null,null,null," 2201600740 "]
[null,null,null,null,null,null,null,null,null,null,null," 2201600746 "]
[null,null,null,null,null,null,null,null,null,null,null," 2201600747 "]
[null,null,null,null,null,null,null,null,null,null,null," 2201600748 "]
[null,null,null,null,null,null,null,null,null,null,null," 2201600750 "]
[null,null,null,null,null,null,null,null,null,null,null," 2201600752 "]
[null,null,null,null,null,null,null,null,null,null,null," 2201600755 "]
[null,null,null,null,null,null,null,null,null,null,null," 2201600756 "]
[null,null,null,null,null,null,null,null,null,null,null," 2201600758 "]
[null,null,null,null,null,null,null,null,null,null,null," 2201601606 "]
[null,null,null,null,null,null,null,null,null,null,null," 2201602432 "]
[null,null,null,null,null,null,null,null,null,null,null," 214165046 "]
[null,null,null,null,null,null,null,null,null,null,null," 215160015 "]
[null,null,null,null,null,null,null,null,null,null,null," 215160018 "]
[null,null,null,null,null,null,null,null,null,null,null," 215160049 "]
[null,null,null,null,null,null,null,null,null,null,null," 215160075 "]
[null,null,null,null,null,null,null,null,null,null,null," 215160122 "]
[null,null,null,null,null,null,null,null,null,null,null," 216160003 "]
[null,null,null,null,null,null,null,null,null,null,null," 216160042 "]
[null,null,null,null,null,null,null,null,null,null,null," 216160157 "]
[null,null,null,null,null,null,null,null,null,null,null," 216165061 "]
[null,null,null,null,null,null,null,null,null,null,null," 216165119 "]
[null,null,null,null,null,null,null,null,null,null,null," 217160071 "]
[null,null,null,null,null,null,null,null,null,null,null," 217165001 "]
[null,null,null,null,null,null,null,null,null,null,null," 217165015 "]
[null,null,null,null,null,null,null,null,null,null,null," 217165032 "]
[null,null,null,null,null,null,null,null,null,null,null," 217165051 "]
[null,null,null,null,null,null,null,null,null,null,null," 217165064 "]
[null,null,null,null,null,null,null,null,null,null,null," 217165069 "]
[null,null,null,null,null,null,null,null,null,null,null," 217165097 "]
[null,null,null,null,null,null,null,null,null,null,null," 217165100 "]
[null,null,null,null,null,null,null,null,null,null,null," 2181601456 "]
[null,null,null,null,null,null,null,null,null,null,null," 2181601458 "]
[null,null,null,null,null,null,null,null,null,null,null," 2181609765 "]
[null,null,null,null,null,null,null,null,null,null,null," 2181609770 "]
[null,null,null,null,null,null,null,null,null,null,null," 2181609773 "]
[null,null,null,null,null,null,null,null,null,null,null," 2181609775 "]
[null,null,null,null,null,null,null,null,null,null,null," 2181609786 "]
[null,null,null,null,null,null,null,null,null,null,null," 2181609795 "]
[null,null,null,null,null,null,null,null,null,null,null," 2181609816 "]
[null,null,null,null,null,null,null,null,null,null,null," 2181609818 "]
[null,null,null,null,null,null,null,null,null,null,null," 2181609821 "]
[null,null,null,null,null,null,null,null,null,null,null," 2181609822 "]
[null,null,null,null,null,null,null,null,null,null,null," 2181609825 "]
[null,null,null,null,null,null,null,null,null,null,null," 2181609832 "]
[null,null,null,null,null,null,null,null,null,null,null," 2181609834 "]
[null,null,null,null,null,null,null,null,null,null,null," 2181609841 "]
[null,null,null,null,null,null,null,null,null,null,null," 2191602460 "]
[null,null,null,null,null,null,null,null,null,null,null," 2191602461 "]
[null,null,null,null,null,null,null,null,null,null,null," 2191602462 "]
[null,null,null,null,null,null,null,null,null,null,null," 2191602465 "]
[null,null,null,null,null,null,null,null,null,null,null," 2191602467 "]
[null,null,null,null,null,null,null,null,null,null,null," 2191602469 "]
[null,null,null,null,null,null,null,null,null,null,null," 2191602472 "]
[null,null,null,null,null,null,null,null,null,null,null," 2191602473 "]
[null,null,null,null,null,null,null,null,null,null,null," 2191602474 "]
[null,null,null,null,null,null,null,null,null,null,null," 2191602476 "]
[null,null,null,null,null,null,null,null,null,null,null," 2191602477 "]
[null,null,null,null,null,null,null,null,null,null,null," 2191602478 "]
[null,null,null,null,null,null,null,null,null,null,null," 2191602479 "]
[null,null,null,null,null,null,null,null,null,null,null," 2191602480 "]
[null,null,null,null,null,null,null,null,null,null,null," 2191602481 "]
[null,null,null,null,null,null,null,null,null,null,null," 2191602482 "]
[null,null,null,null,null,null,null,null,null,null,null," 2191602484 "]
[null,null,null,null,null,null,null,null,null,null,null," 2191602487 "]
[null,null,null,null,null,null,null,null,null,null,null," 2191602488 "]
[null,null,null,null,null,null,null,null,null,null,null," 2191602491 "]
[null,null,null,null,null,null,null,null,null,null,null," 2191602493 "]
[null,null,null,null,null,null,null,null,null,null,null," 2191602495 "]
[null,null,null,null,null,null,null,null,null,null,null," 2191602570 "]
[null,null,null,null,null,null,null,null,null,null,null," 217165055 "]
[null,null,null,null,null,null,null,null,null,null,null," 2181609838 "]
[null,null,null,null,null,null,null,null,null,null,null," 214165030 "]
[null,null,null,null,null,null,null,null,null,null,null," 214165077 "]
[null,null,null,null,null,null,null,null,null,null,null," 214165103 "]
[null,null,null,null,null,null,null,null,null,null,null," 216160106 "]
[null,null,null,null,null,null,null,null,null,null,null," 216160164 "]
[null,null,null,null,null,null,null,null,null,null,null," 216165097 "]
[null,null,null,null,null,null,null,null,null,null,null," 217160026 "]
[null,null,null,null,null,null,null,null,null,null,null," 217160042 "]
[null,null,null,null,null,null,null,null,null,null,null," 217160076 "]
[null,null,null,null,null,null,null,null,null,null,null," 217160138 "]
[null,null,null,null,null,null,null,null,null,null,null," 217160149 "]
[null,null,null,null,null,null,null,null,null,null,null," 217160198 "]
[null,null,null,null,null,null,null,null,null,null,null," 217165018 "]
[null,null,null,null,null,null,null,null,null,null,null," 217165034 "]
[null,null,null,null,null,null,null,null,null,null,null," 217165080 "]
[null,null,null,null,null,null,null,null,null,null,null," 2181601455 "]
[null,null,null,null,null,null,null,null,null,null,null," 2181601463 "]
[null,null,null,null,null,null,null,null,null,null,null," 2181601480 "]
[null,null,null,null,null,null,null,null,null,null,null," 2181601483 "]
[null,null,null,null,null,null,null,null,null,null,null," 2181601501 "]
[null,null,null,null,null,null,null,null,null,null,null," 2181609783 "]
[null,null,null,null,null,null,null,null,null,null,null," 2181609790 "]
[null,null,null,null,null,null,null,null,null,null,null," 2181609796 "]
[null,null,null,null,null,null,null,null,null,null,null," 2181609828 "]
[null,null,null,null,null,null,null,null,null,null,null," 2191602468 "]
[null,null,null,null,null,null,null,null,null,null,null," 2201602431 "]
[null,null,null,null,null,null,null,null,null,null,null," 217165118 "]
[null,null,null,null,null,null,null,null,null,null,null," 2181609779 "]
[null,null,null,null,null,null,null,null,null,null,null," 2181609792 "]
[null,null,null,null,null,null,null,null,null,null,null,217160183]
[null,null,null,null,null,null,null,null,null,null,null,218160185]
[null,null,null,null,null,null,null,null,null,null,null,2181601413]
[null,null,null,null,null,null,null,null,null,null,null,213165038]
[null,null,null,null,null,null,null,null,null,null,null,214160053]
[null,null,null,null,null,null,null,null,null,null,null,215165087]
[null,null,null,null,null,null,null,null,null,null,null,216160109]
[null,null,null,null,null,null,null,null,null,null,null,216165055]
[null,null,null,null,null,null,null,null,null,null,null,216165089]
[null,null,null,null,null,null,null,null,null,null,null,214160017]
[null,null,null,null,null,null,null,null,null,null,null,214165091]
[null,null,null,null,null,null,null,null,null,null,null,216165010]
[null,null,null,null,null,null,null,null,null,null,null,2161600014]
[null,null,null,null,null,null,null,null,null,null,null,215160037]
[null,null,null,null,null,null,null,null,null,null,null,216160126]
[null,null,null,null,null,null,null,null,null,null,null,213165004]
[null,null,null,null,null,null,null,null,null,null,null,213165063]
[null,null,null,null,null,null,null,null,null,null,null,213165077]
[null,null,null,null,null,null,null,null,null,null,null,215165031]
[null,null,null,null,null,null,null,null,null,null,null,218160927]
[null,null,null,null,null,null,null,null,null,null,null," 20850413 "]
[null,null,null,null,null,null,null,null,null,null,null," 214160049 "]
[null,null,null,null,null,null,null,null,null,null,null," 214160078 "]
[null,null,null,null,null,null,null,null,null,null,null," 214160173 "]
[null,null,null,null,null,null,null,null,null,null,null," 214165084 "]
[null,null,null,null,null,null,null,null,null,null,null," 215160022 "]
[null,null,null,null,null,null,null,null,null,null,null," 215160025 "]
[null,null,null,null,null,null,null,null,null,null,null," 215160046 "]
[null,null,null,null,null,null,null,null,null,null,null," 215165125 "]
[null,null,null,null,null,null,null,null,null,null,null," 216160007 "]
[null,null,null,null,null,null,null,null,null,null,null," 216160015 "]
[null,null,null,null,null,null,null,null,null,null,null," 216160029 "]
[null,null,null,null,null,null,null,null,null,null,null," 216160103 "]
[null,null,null,null,null,null,null,null,null,null,null," 216160150 "]
[null,null,null,null,null,null,null,null,null,null,null," 216165034 "]
[null,null,null,null,null,null,null,null,null,null,null," 216165076 "]
[null,null,null,null,null,null,null,null,null,null,null," 217160030 "]
[null,null,null,null,null,null,null,null,null,null,null," 217160075 "]
[null,null,null,null,null,null,null,null,null,null,null," 217160131 "]
[null,null,null,null,null,null,null,null,null,null,null," 217160162 "]
[null,null,null,null,null,null,null,null,null,null,null," 217160173 "]
[null,null,null,null,null,null,null,null,null,null,null," 217160175 "]
[null,null,null,null,null,null,null,null,null,null,null," 217165005 "]
[null,null,null,null,null,null,null,null,null,null,null," 217165016 "]
[null,null,null,null,null,null,null,null,null,null,null," 217165020 "]
[null,null,null,null,null,null,null,null,null,null,null," 217165050 "]
[null,null,null,null,null,null,null,null,null,null,null," 217165063 "]
[null,null,null,null,null,null,null,null,null,null,null," 217165068 "]
[null,null,null,null,null,null,null,null,null,null,null," 217165082 "]
[null,null,null,null,null,null,null,null,null,null,null," 217165096 "]
[null,null,null,null,null,null,null,null,null,null,null," 217165117 "]
[null,null,null,null,null,null,null,null,null,null,null," 2181601478 "]
[null,null,null,null,null,null,null,null,null,null,null," 2181601479 "]
[null,null,null,null,null,null,null,null,null,null,null," 2181601482 "]
[null,null,null,null,null,null,null,null,null,null,null," 2181601484 "]
[null,null,null,null,null,null,null,null,null,null,null," 2181601487 "]
[null,null,null,null,null,null,null,null,null,null,null," 2181601499 "]
[null,null,null,null,null,null,null,null,null,null,null," 2181601500 "]
[null,null,null,null,null,null,null,null,null,null,null," 2181601503 "]
[null,null,null,null,null,null,null,null,null,null,null," 2181601504 "]
[null,null,null,null,null,null,null,null,null,null,null," 2181609771 "]
[null,null,null,null,null,null,null,null,null,null,null," 2181609780 "]
[null,null,null,null,null,null,null,null,null,null,null," 2181609784 "]
[null,null,null,null,null,null,null,null,null,null,null," 2181609787 "]
[null,null,null,null,null,null,null,null,null,null,null," 2181609800 "]
[null,null,null,null,null,null,null,null,null,null,null," 2181609801 "]
[null,null,null,null,null,null,null,null,null,null,null," 2181609802 "]
[null,null,null,null,null,null,null,null,null,null,null," 2181609806 "]
[null,null,null,null,null,null,null,null,null,null,null," 2181609808 "]
[null,null,null,null,null,null,null,null,null,null,null," 2181609812 "]
[null,null,null,null,null,null,null,null,null,null,null," 2181609813 "]
[null,null,null,null,null,null,null,null,null,null,null," 2181609815 "]
[null,null,null,null,null,null,null,null,null,null,null," 2181609824 "]
[null,null,null,null,null,null,null,null,null,null,null," 2181609830 "]
[null,null,null,null,null,null,null,null,null,null,null," 2181609835 "]
[null,null,null,null,null,null,null,null,null,null,null," 2181609836 "]
[null,null,null,null,null,null,null,null,null,null,null," 2181609837 "]
[null,null,null,null,null,null,null,null,null,null,null," 216160012 "]
[null,null,null,null,null,null,null,null,null,null,null," 216160026 "]
[null,null,null,null,null,null,null,null,null,null,null," 216160075 "]
[null,null,null,null,null,null,null,null,null,null,null," 216165083 "]
[null,null,null,null,null,null,null,null,null,null,null," 217160155 "]
[null,null,null,null,null,null,null,null,null,null,null," 2181601454 "]
[null,null,null,null,null,null,null,null,null,null,null," 2181601457 "]
[null,null,null,null,null,null,null,null,null,null,null," 2181601461 "]
[null,null,null,null,null,null,null,null,null,null,null," 2181601462 "]
[null,null,null,null,null,null,null,null,null,null,null," 2181609811 "]
[null,null,null,null,null,null,null,null,null,null,null," 2181609819 "]
[null,null,null,null,null,null,null,null,null,null,null," 2181609820 "]
[null,null,null,null,null,null,null,null,null,null,null," 2181609827 "]
[null,null,null,null,null,null,null,null,null,null,null," 2181609842 "]
[null,null,null,null,null,null,null,null,null,null,null," 2201602436 "]
[null,null,null,null,null,null,null,null,null,null,null," 215160055 "]
[null,null,null,null,null,null,null,null,null,null,null," 216160028 "]
[null,null,null,null,null,null,null,null,null,null,null," 216160159 "]
[null,null,null,null,null,null,null,null,null,null,null," 217160047 "]
[null,null,null,null,null,null,null,null,null,null,null," 217165037 "]
[null,null,null,null,null,null,null,null,null,null,null," 2181601496 "]
[null,null,null,null,null,null,null,null,null,null,null," 2181609794 "]
[null,null,null,null,null,null,null,null,null,null,null," 214160183 "]
[null,null,null,null,null,null,null,null,null,null,null," 214165092 "]
[null,null,null,null,null,null,null,null,null,null,null," 215160013 "]
[null,null,null,null,null,null,null,null,null,null,null," 215165026 "]
[null,null,null,null,null,null,null,null,null,null,null," 216160001 "]
[null,null,null,null,null,null,null,null,null,null,null," 216160023 "]
[null,null,null,null,null,null,null,null,null,null,null," 216160054 "]
[null,null,null,null,null,null,null,null,null,null,null," 216160081 "]
[null,null,null,null,null,null,null,null,null,null,null," 216165037 "]
[null,null,null,null,null,null,null,null,null,null,null," 216165063 "]
[null,null,null,null,null,null,null,null,null,null,null," 216165082 "]
[null,null,null,null,null,null,null,null,null,null,null," 216165084 "]
[null,null,null,null,null,null,null,null,null,null,null," 216165099 "]
[null,null,null,null,null,null,null,null,null,null,null," 217160002 "]
[null,null,null,null,null,null,null,null,null,null,null," 217160077 "]
[null,null,null,null,null,null,null,null,null,null,null," 217165007 "]
[null,null,null,null,null,null,null,null,null,null,null," 217165030 "]
[null,null,null,null,null,null,null,null,null,null,null," 2181601474 "]
[null,null,null,null,null,null,null,null,null,null,null," 2181609831 "]
[null,null,null,null,null,null,null,null,null,null,null,2181809786]
[null,null,null,null,null,null,null,null,null,null,null,2161600106]
[null,null,null,null,null,null,null,null,null,null,null,21560122]
[null,null,null,null,null,null,null,null,null,null,null," 215160062 "]
[null,null,null,null,null,null,null,null,null,null,null," 215165098 "]
[null,null,null,null,null,null,null,null,null,null,null," 216160097 "]
[null,null,null,null,null,null,null,null,null,null,null," 217160192 "]
[null,null,null,null,null,null,null,null,null,null,null," 214160129 "]
[null,null,null,null,null,null,null,null,null,null,null," 215160043 "]
[null,null,null,null,null,null,null,null,null,null,null," 215160105 "]
[null,null,null,null,null,null,null,null,null,null,null," 215165021 "]
[null,null,null,null,null,null,null,null,null,null,null," 215165061 "]
[null,null,null,null,null,null,null,null,null,null,null," 215165094 "]
[null,null,null,null,null,null,null,null,null,null,null," 216160038 "]
[null,null,null,null,null,null,null,null,null,null,null," 216160080 "]
[null,null,null,null,null,null,null,null,null,null,null," 216160086 "]
[null,null,null,null,null,null,null,null,null,null,null," 216160099 "]
[null,null,null,null,null,null,null,null,null,null,null," 216165065 "]
[null,null,null,null,null,null,null,null,null,null,null," 216165072 "]
[null,null,null,null,null,null,null,null,null,null,null," 216165075 "]
[null,null,null,null,null,null,null,null,null,null,null," 216165093 "]
[null,null,null,null,null,null,null,null,null,null,null," 216165105 "]
[null,null,null,null,null,null,null,null,null,null,null," 216165108 "]
[null,null,null,null,null,null,null,null,null,null,null," 217160015 "]
[null,null,null,null,null,null,null,null,null,null,null," 217160033 "]
[null,null,null,null,null,null,null,null,null,null,null," 217160068 "]
[null,null,null,null,null,null,null,null,null,null,null," 217160156 "]
[null,null,null,null,null,null,null,null,null,null,null," 217160157 "]
[null,null,null,null,null,null,null,null,null,null,null," 217160164 "]
[null,null,null,null,null,null,null,null,null,null,null," 217160186 "]
[null,null,null,null,null,null,null,null,null,null,null," 217160188 "]
[null,null,null,null,null,null,null,null,null,null,null," 217160194 "]
[null,null,null,null,null,null,null,null,null,null,null," 217165004 "]
[null,null,null,null,null,null,null,null,null,null,null," 217165006 "]
[null,null,null,null,null,null,null,null,null,null,null," 217165022 "]
[null,null,null,null,null,null,null,null,null,null,null," 217165062 "]
[null,null,null,null,null,null,null,null,null,null,null," 217165071 "]
[null,null,null,null,null,null,null,null,null,null,null," 217165073 "]
[null,null,null,null,null,null,null,null,null,null,null," 217165081 "]
[null,null,null,null,null,null,null,null,null,null,null," 217165105 "]
[null,null,null,null,null,null,null,null,null,null,null," 217165106 "]
[null,null,null,null,null,null,null,null,null,null,null," 217165107 "]
[null,null,null,null,null,null,null,null,null,null,null," 217165112 "]
[null,null,null,null,null,null,null,null,null,null,null," 2181609781 "]
[null,null,null,null,null,null,null,null,null,null,null," 2181609782 "]
[null,null,null,null,null,null,null,null,null,null,null,21615034]
[null,null,null,null,null,null,null,null,null,null,null,"2151 60043"]
[null,null,null,null,null,null,null,null,null,null,null,217168007]
[null,null,null,null,null,null,null,null,null,null,null,216165066]
[null,null,null,null,null,null,null,null,null,null,null,216165102]
[null,null,null,null,null,null,null,null,null,null,null,216160102]
[null,null,null,null,null,null,null,null,null,null,null,218609782]
[null,null,null,null,null,null,null,null,null,null,null,214160096]
[null,null,null,null,null,null,null,null,null,null,null,214165088]
[null,null,null,null,null,null,null,null,null,null,null,216160053]
[null,null,null,null,null,null,null,null,null,null,null,213165032]
[null,null,null,null,null,null,null,null,null,null,null,214160035]
[null,null,null,null,null,null,null,null,null,null,null,21716000]
[null,null,null,null,null,null,null,null,null,null,null,31312020]
[null,null,null,null,null,null,null,null,null,null,null,214180092]
[null,null,null,null,null,null,null,null,null,null,null,2191602661]
[null,null,null,null,null,null,null,null,null,null,null," 216160139 "]
[null,null,null,null,null,null,null,null,null,null,null," 2201608199 "]
[null,null,null,null,null,null,null,null,null,null,null," 2211600356 "]
[null,null,null,null,null,null,null,null,null,null,null," 2211601062 "]
[null,null,null,null,null,null,null,null,null,null,null," 2211601197 "]
[null,null,null,null,null,null,null,null,null,null,null," 2211601204 "]
[null,null,null,null,null,null,null,null,null,null,null," 2211601786 "]
[null,null,null,null,null,null,null,null,null,null,null," 2211602001 "]
[null,null,null,null,null,null,null,null,null,null,null," 2211602431 "]
[null,null,null,null,null,null,null,null,null,null,null," 2211605543 "]
[null,null,null,null,null,null,null,null,null,null,null," 2211606071 "]
[null,null,null,null,null,null,null,null,null,null,null," 2211649658 "]
[null,null,null,null,null,null,null,null,null,null,null," 2211656725 "]
[null,null,null,null,null,null,null,null,null,null,null," 2211656726 "]
[null,null,null,null,null,null,null,null,null,null,null," 2211656730 "]
[null,null,null,null,null,null,null,null,null,null,null," 2211656731 "]
[null,null,null,null,null,null,null,null,null,null,null," 2211656732 "]
[null,null,null,null,null,null,null,null,null,null,null," 2211656734 "]
[null,null,null,null,null,null,null,null,null,null,null," 2211656735 "]
[null,null,null,null,null,null,null,null,null,null,null," 2211656736 "]
[null,null,null,null,null,null,null,null,null,null,null," 2211656737 "]
[null,null,null,null,null,null,null,null,null,null,null," 2211656738 "]
[null,null,null,null,null,null,null,null,null,null,null," 2211656739 "]
[null,null,null,null,null,null,null,null,null,null,null," 2211656741 "]
[null,null,null,null,null,null,null,null,null,null,null," 2211656742 "]
[null,null,null,null,null,null,null,null,null,null,null," 2211656743 "]
[null,null,null,null,null,null,null,null,null,null,null," 2211656744 "]
[null,null,null,null,null,null,null,null,null,null,null," 2211656745 "]
[null,null,null,null,null,null,null,null,null,null,null," 2211656746 "]
[null,null,null,null,null,null,null,null,null,null,null," 2211656748 "]
[null,null,null,null,null,null,null,null,null,null,null," 2211656750 "]
[null,null,null,null,null,null,null,null,null,null,null," 2211656751 "]
[null,null,null,null,null,null,null,null,null,null,null," 2211656752 "]
[null,null,null,null,null,null,null,null,null,null,null," 2211656753 "]
[null,null,null,null,null,null,null,null,null,null,null," 2211656754 "]
[null,null,null,null,null,null,null,null,null,null,null," 2211656755 "]
[null,null,null,null,null,null,null,null,null,null,null," 2211656756 "]
[null,null,null,null,null,null,null,null,null,null,null," 2211656757 "]
[null,null,null,null,null,null,null,null,null,null,null," 2211656758 "]
[null,null,null,null,null,null,null,null,null,null,null," 2211656760 "]
[null,null,null,null,null,null,null,null,null,null,null," 2211656761 "]
[null,null,null,null,null,null,null,null,null,null,null," 2211656762 "]
[null,null,null,null,null,null,null,null,null,null,null," 2211656763 "]
[null,null,null,null,null,null,null,null,null,null,null," 2211656768 "]
[null,null,null,null,null,null,null,null,null,null,null," 2211656769 "]
[null,null,null,null,null,null,null,null,null,null,null," 2211656770 "]
[null,null,null,null,null,null,null,null,null,null,null," 2211656771 "]
[null,null,null,null,null,null,null,null,null,null,null," 2211656772 "]
[null,null,null,null,null,null,null,null,null,null,null," 221165679 "]
[null,null,null,null,null,null,null,null,null,null,null," 2211656979 "]
[null,null,null,null,null,null,null,null,null,null,null," 2211656980 "]
[null,null,null,null,null,null,null,null,null,null,null," 2211656981 "]
[null,null,null,null,null,null,null,null,null,null,null," 2211656982 "]
[null,null,null,null,null,null,null,null,null,null,null," 2211656984 "]
[null,null,null,null,null,null,null,null,null,null,null," 2211656985 "]
[null,null,null,null,null,null,null,null,null,null,null," 2211656986 "]
[null,null,null,null,null,null,null,null,null,null,null," 2211656989 "]
[null,null,null,null,null,null,null,null,null,null,null," 2211657180 "]
[null,null,null,null,null,null,null,null,null,null,null,"216160163"]
[null,null,null,null,null,null,null,null,null,null,null,"2201611850"]
[null,null,null,null,null,null,null,null,null,null,null,"2211654500"]
[null,null,null,null,null,null,null,null,null,null,null,"221165535"]
[null,null,null,null,null,null,null,null,null,null,null,"221165536"]
[null,null,null,null,null,null,null,null,null,null,null,"2211657062"]
[null,null,null,null,null,null,null,null,null,null,null,"2211657706"]
[null,null,null,null,null,null,null,null,null,null,null,"2211657940"]
[null,null,null,null,null,null,null,null,null,null,null," 215165065 "]
[null,null,null,null,null,null,null,null,null,null,null," 216160069 "]
[null,null,null,null,null,null,null,null,null,null,null," 2191605592 "]
[null,null,null,null,null,null,null,null,null,null,null," 2201602434 "]
[null,null,null,null,null,null,null,null,null,null,null,"2191602461"]
[null,null,null,null,null,null,null,null,null,null,null,"2191606293"]
[null,null,null,null,null,null,null,null,null,null,null,"2201600504"]
[null,null,null,null,null,null,null,null,null,null,null,"2211656764"]
[null,null,null,null,null,null,null,null,null,null,null,"2211656766"]
[null,null,null,null,null,null,null,null,null,null,null,"2211656767"]
[null,null,null,null,null,null,null,null,null,null,null,"2211656989"]
[null,null,null,null,null,null,null,null,null,null,null,"2211657178"]
[null,null,null,null,null,null,null,null,null,null,null,"2211655535"]
[null,null,null,null,null,null,null,null,null,null,null,"2211656726"]
[null,null,null,null,null,null,null,null,null,null,null,"2211656744"]
[null,null,null,null,null,null,null,null,null,null,null,"2211656768"]
[null,null,null,null,null,null,null,null,null,null,null,"221165706"]
[null,null,null,null,null,null,null,null,null,null,null,"221657940"]
[null,null,null,null,null,null,null,null,null,null,null,"2201600743"]
[null,null,null,null,null,null,null,null,null,null,null,"2201604893"]
[null,null,null,null,null,null,null,null,null,null,null," 216165127 "]
[null,null,null,null,null,null,null,null,null,null,null,"2211657942"]
[null,null,null,null,null,null,null,null,null,null,null,"2211657953"]
[null,null,null,null,null,null,null,null,null,null,null,"2181609777"]
[null,null,null,null,null,null,null,null,null,null,null," 2191606293 "]
[null,null,null,null,null,null,null,null,null,null,null," 2201600504 "]
[null,null,null,null,null,null,null,null,null,null,null," 2211656727 "]
[null,null,null,null,null,null,null,null,null,null,null," 2211656733 "]
[null,null,null,null,null,null,null,null,null,null,null," 2211656766 "]
[null,null,null,null,null,null,null,null,null,null,null," 2211656767 "]
[null,null,null,null,null,null,null,null,null,null,null,"214165077"]
[null,null,null,null,null,null,null,null,null,null,null,"2181601606"]
[null,null,null,null,null,null,null,null,null,null,null,"2181609773"]
[null,null,null,null,null,null,null,null,null,null,null,"2181609775"]
[null,null,null,null,null,null,null,null,null,null,null,"2181609790"]
[null,null,null,null,null,null,null,null,null,null,null,"2181609828"]
[null,null,null,null,null,null,null,null,null,null,null,"2181609838"]
[null,null,null,null,null,null,null,null,null,null,null,"2191602468"]
[null,null,null,null,null,null,null,null,null,null,null,"2191602472"]
[null,null,null,null,null,null,null,null,null,null,null,"2191602478"]
[null,null,null,null,null,null,null,null,null,null,null,"2191602491"]
[null,null,null,null,null,null,null,null,null,null,null,"2191602661"]
[null,null,null,null,null,null,null,null,null,null,null,"2201600729"]
[null,null,null,null,null,null,null,null,null,null,null,"2201600739"]
[null,null,null,null,null,null,null,null,null,null,null,"2201600747"]
[null,null,null,null,null,null,null,null,null,null,null,"2201600752"]
[null,null,null,null,null,null,null,null,null,null,null,"2201602441"]
[null,null,null,null,null,null,null,null,null,null,null,"2201602444"]
[null,null,null,null,null,null,null,null,null,null,null,"2201602446"]
[null,null,null,null,null,null,null,null,null,null,null,"2201602447"]
[null,null,null,null,null,null,null,null,null,null,null,"2201602450"]
[null,null,null,null,null,null,null,null,null,null,null,"216165127"]
[null,null,null,null,null,null,null,null,null,null,null,"2191602479"]
[null,null,null,null,null,null,null,null,null,null,null,"2201600735"]
[null,null,null,null,null,null,null,null,null,null,null,"2201600738"]
[null,null,null,null,null,null,null,null,null,null,null,"2201600746"]
[null,null,null,null,null,null,null,null,null,null,null,"2201600750"]
[null,null,null,null,null,null,null,null,null,null,null,"2201600754"]
[null,null,null,null,null,null,null,null,null,null,null,"2201602432"]
[null,null,null,null,null,null,null,null,null,null,null,"214160129"]
[null,null,null,null,null,null,null,null,null,null,null,"214160173"]
[null,null,null,null,null,null,null,null,null,null,null,"214160183"]
[null,null,null,null,null,null,null,null,null,null,null,"214165101"]
[null,null,null,null,null,null,null,null,null,null,null,"215160046"]
[null,null,null,null,null,null,null,null,null,null,null,"215165125"]
[null,null,null,null,null,null,null,null,null,null,null,"217165025"]
[null,null,null,null,null,null,null,null,null,null,null,"2171651061"]
[null,null,null,null,null,null,null,null,null,null,null,"218160086"]
[null,null,null,null,null,null,null,null,null,null,null,"218160172"]
[null,null,null,null,null,null,null,null,null,null,null,"215160025"]
[null,null,null,null,null,null,null,null,null,null,null,"215165011"]
[null,null,null,null,null,null,null,null,null,null,null,"21616007"]
[null,null,null,null,null,null,null,null,null,null,null,"2161650162"]
[null,null,null,null,null,null,null,null,null,null,null,"216165073"]
[null,null,null,null,null,null,null,null,null,null,null,"2181609784"]
[null,null,null,null,null,null,null,null,null,null,null,"2181609786"]
[null,null,null,null,null,null,null,null,null,null,null,"2181609787"]
[null,null,null,null,null,null,null,null,null,null,null,"2181609796"]
[null,null,null,null,null,null,null,null,null,null,null,"2181609800"]
[null,null,null,null,null,null,null,null,null,null,null,"2181609801"]
[null,null,null,null,null,null,null,null,null,null,null,"2181609802"]
[null,null,null,null,null,null,null,null,null,null,null,"2181609806"]
[null,null,null,null,null,null,null,null,null,null,null,"2181609808"]
[null,null,null,null,null,null,null,null,null,null,null,"2181609811"]
[null,null,null,null,null,null,null,null,null,null,null,"2181609812"]
[null,null,null,null,null,null,null,null,null,null,null,"2181609813"]
[null,null,null,null,null,null,null,null,null,null,null,"2181609818"]
[null,null,null,null,null,null,null,null,null,null,null,"2181609819"]
[null,null,null,null,null,null,null,null,null,null,null,"2181609820"]
[null,null,null,null,null,null,null,null,null,null,null,"2181609821"]
[null,null,null,null,null,null,null,null,null,null,null,"2181609824"]
[null,null,null,null,null,null,null,null,null,null,null,"2181609825"]
[null,null,null,null,null,null,null,null,null,null,null,"2181609827"]
[null,null,null,null,null,null,null,null,null,null,null,"2181609830"]
[null,null,null,null,null,null,null,null,null,null,null,"2181609834"]
[null,null,null,null,null,null,null,null,null,null,null,"2181609835"]
[null,null,null,null,null,null,null,null,null,null,null,"2181609836"]
[null,null,null,null,null,null,null,null,null,null,null,"2181609837"]
[null,null,null,null,null,null,null,null,null,null,null,"2191602460"]
[null,null,null,null,null,null,null,null,null,null,null,"2191602467"]
[null,null,null,null,null,null,null,null,null,null,null,"2191602469"]
[null,null,null,null,null,null,null,null,null,null,null,"2191602473"]
[null,null,null,null,null,null,null,null,null,null,null,"2191602474"]
[null,null,null,null,null,null,null,null,null,null,null,"2191602477"]
[null,null,null,null,null,null,null,null,null,null,null,"2191602481"]
[null,null,null,null,null,null,null,null,null,null,null,"2191602487"]
[null,null,null,null,null,null,null,null,null,null,null,"2191602488"]
[null,null,null,null,null,null,null,null,null,null,null,"2191602493"]
[null,null,null,null,null,null,null,null,null,null,null,"2191602495"]
[null,null,null,null,null,null,null,null,null,null,null,"215165054"]
[null,null,null,null,null,null,null,null,null,null,null,"2181609493"]
[null,null,null,null,null,null,null,null,null,null,null,"2181609771"]
[null,null,null,null,null,null,null,null,null,null,null,"2181609822"]
[null,null,null,null,null,null,null,null,null,null,null,"2181609841"]
[null,null,null,null,null,null,null,null,null,null,null,"2181609829"]
[null,null,null,null,null,null,null,null,null,null,null,"2191602462"]
[null,null,null,null,null,null,null,null,null,null,null,"2191602465"]
[null,null,null,null,null,null,null,null,null,null,null,"2191602476"]
[null,null,null,null,null,null,null,null,null,null,null,"2191602482"]
[null,null,null,null,null,null,null,null,null,null,null,"214160140"]
[null,null,null,null,null,null,null,null,null,null,null,"215160062"]
[null,null,null,null,null,null,null,null,null,null,null,"216160043"]
[null,null,null,null,null,null,null,null,null,null,null,"217165106"]
[null,null,null,null,null,null,null,null,null,null,null,"213165007"]
[null,null,null,null,null,null,null,null,null,null,null,"214160017"]
[null,null,null,null,null,null,null,null,null,null,null,"214160053"]
[null,null,null,null,null,null,null,null,null,null,null,"214160102"]
[null,null,null,null,null,null,null,null,null,null,null,"214165088"]
[null,null,null,null,null,null,null,null,null,null,null,"214165141"]
[null,null,null,null,null,null,null,null,null,null,null,"215160031"]
[null,null,null,null,null,null,null,null,null,null,null,"215165019"]
[null,null,null,null,null,null,null,null,null,null,null,"215165066"]
[null,null,null,null,null,null,null,null,null,null,null,"216165006"]
[null,null,null,null,null,null,null,null,null,null,null,"215160017"]
[null,null,null,null,null,null,null,null,null,null,null,"215160109"]
[null,null,null,null,null,null,null,null,null,null,null,"215165101"]
[null,null,null,null,null,null,null,null,null,null,null,"216155009"]
[null,null,null,null,null,null,null,null,null,null,null,"216165126"]
[null,null,null,null,null,null,null,null,null,null,null,"214165070"]
[null,null,null,null,null,null,null,null,null,null,null," 214165102 "]
[null,null,null,null,null,null,null,null,null,null,null," 215165100 "]
[null,null,null,null,null,null,null,null,null,null,null," 2181601466 "]
[null,null,null,null,null,null,null,null,null,null,null," 2181609829 "]
[null,null,null,null,null,null,null,null,null,null,null,"2201610564"]
[null,null,null,null,null,null,null,null,null,null,null,"2191602496"]
[null,null,null,null,null,null,null,null,null,null,null,"2191606176"]
[null,null,null,null,null,null,null,null,null,null,null,"2201600724"]
[null,null,null,null,null,null,null,null,null,null,null,"2201602449"]
[null,null,null,null,null,null,null,null,null,null,null,"2201606106"]
[null,null,null,null,null,null,null,null,null,null,null,"2201610562"]
[null,null,null,null,null,null,null,null,null,null,null,"2211605543"]
[null,null,null,null,null,null,null,null,null,null,null,"2211656500"]
[null,null,null,null,null,null,null,null,null,null,null,"2211656535"]
[null,null,null,null,null,null,null,null,null,null,null,"2211656536"]
[null,null,null,null,null,null,null,null,null,null,null,"2211656735"]
[null,null,null,null,null,null,null,null,null,null,null,"2211656736"]
[null,null,null,null,null,null,null,null,null,null,null,"2211656737"]
[null,null,null,null,null,null,null,null,null,null,null,"2211656738 "]
[null,null,null,null,null,null,null,null,null,null,null,"2211656739"]
[null,null,null,null,null,null,null,null,null,null,null,"2211656745"]
[null,null,null,null,null,null,null,null,null,null,null,"2211656750"]
[null,null,null,null,null,null,null,null,null,null,null,"2211656753"]
[null,null,null,null,null,null,null,null,null,null,null,"2211656763"]
[null,null,null,null,null,null,null,null,null,null,null,"2211656765"]
[null,null,null,null,null,null,null,null,null,null,null,"2211656984"]
[null,null,null,null,null,null,null,null,null,null,null,"221656768"]
[null,null,null,null,null,null,null,null,null,null,null,"221656770"]
[null,null,null,null,null,null,null,null,null,null,null,"221656981"]
[null,null,null,null,null,null,null,null,null,null,null,"21616003"]
[null,null,null,null,null,null,null,null,null,null,null,"2191602570"]
[null,null,null,null,null,null,null,null,null,null,null,"2191605156"]
[null,null,null,null,null,null,null,null,null,null,null,"2201600737"]
[null,null,null,null,null,null,null,null,null,null,null," 216165059 "]
[null,null,null,null,null,null,null,null,null,null,null,"2201600756"]
[null,null,null,null,null,null,null,null,null,null,null," 214165109 "]
[null,null,null,null,null,null,null,null,null,null,null," 216160101 "]
[null,null,null,null,null,null,null,null,null,null,null," 216165094 "]
[null,null,null,null,null,null,null,null,null,null,null," 217160063 "]
[null,null,null,null,null,null,null,null,null,null,null," 217160152 "]
[null,null,null,null,null,null,null,null,null,null,null," 217165014 "]
[null,null,null,null,null,null,null,null,null,null,null," 217165052 "]
[null,null,null,null,null,null,null,null,null,null,null," 217165061 "]
[null,null,null,null,null,null,null,null,null,null,null," 2181601459 "]
[null,null,null,null,null,null,null,null,null,null,null," 2181601467 "]
[null,null,null,null,null,null,null,null,null,null,null," 2181601469 "]
[null,null,null,null,null,null,null,null,null,null,null," 2181601470 "]
[null,null,null,null,null,null,null,null,null,null,null," 2181601471 "]
[null,null,null,null,null,null,null,null,null,null,null," 2181601472 "]
[null,null,null,null,null,null,null,null,null,null,null," 2181601473 "]
[null,null,null,null,null,null,null,null,null,null,null," 2181601476 "]
[null,null,null,null,null,null,null,null,null,null,null," 2181601477 "]
[null,null,null,null,null,null,null,null,null,null,null," 2181601481 "]
[null,null,null,null,null,null,null,null,null,null,null," 2181601492 "]
[null,null,null,null,null,null,null,null,null,null,null," 2181609764 "]
[null,null,null,null,null,null,null,null,null,null,null," 2181609766 "]
[null,null,null,null,null,null,null,null,null,null,null," 2181609768 "]
[null,null,null,null,null,null,null,null,null,null,null," 2181609799 "]
[null,null,null,null,null,null,null,null,null,null,null,221165536]
[null,null,null,null,null,null,null,null,null,null,null,2211654500]
[null,null,null,null,null,null,null,null,null,null,null," 216160163 "]
[null,null,null,null,null,null,null,null,null,null,null," 2211656764 "]
[null,null,null,null,null,null,null,null,null,null,null,"221166762"]
[null,null,null,null,null,null,null,null,null,null,null,"214165092"]
[null,null,null,null,null,null,null,null,null,null,null,"214165102"]
[null,null,null,null,null,null,null,null,null,null,null,"216165120"]
[null,null,null,null,null,null,null,null,null,null,null,"218160982"]
[null,null,null,null,null,null,null,null,null,null,null,"215165021"]
[null,null,null,null,null,null,null,null,null,null,null,"215165023"]
[null,null,null,null,null,null,null,null,null,null,null,"215165065"]
[null,null,null,null,null,null,null,null,null,null,null,"215169017"]
[null,null,null,null,null,null,null,null,null,null,null,"217168007"]
[null,null,null,null,null,null,null,null,null,null,null,"211165016"]
[null,null,null,null,null,null,null,null,null,null,null," 213165007 "]
[null,null,null,null,null,null,null,null,null,null,null," 214160053 "]
[null,null,null,null,null,null,null,null,null,null,null," 214165088 "]
[null,null,null,null,null,null,null,null,null,null,null," 214165141 "]
[null,null,null,null,null,null,null,null,null,null,null," 215165104 "]
[null,null,null,null,null,null,null,null,null,null,null," 215165136 "]
[null,null,null,null,null,null,null,null,null,null,null," 216160011 "]
[null,null,null,null,null,null,null,null,null,null,null," 216160024 "]
[null,null,null,null,null,null,null,null,null,null,null," 216160035 "]
[null,null,null,null,null,null,null,null,null,null,null," 216160138 "]
[null,null,null,null,null,null,null,null,null,null,null," 216160170 "]
[null,null,null,null,null,null,null,null,null,null,null," 216165006 "]
[null,null,null,null,null,null,null,null,null,null,null," 216165009 "]
[null,null,null,null,null,null,null,null,null,null,null," 216165053 "]
[null,null,null,null,null,null,null,null,null,null,null," 216165054 "]
[null,null,null,null,null,null,null,null,null,null,null," 216165055 "]
[null,null,null,null,null,null,null,null,null,null,null," 216165089 "]
[null,null,null,null,null,null,null,null,null,null,null," 216165098 "]
[null,null,null,null,null,null,null,null,null,null,null," 217160001 "]
[null,null,null,null,null,null,null,null,null,null,null," 217160006 "]
[null,null,null,null,null,null,null,null,null,null,null," 217165008 "]
[null,null,null,null,null,null,null,null,null,null,null," 217165047 "]
[null,null,null,null,null,null,null,null,null,null,null,"214180092"]
[null,null,null,null,null,null,null,null,null,null,null,"2201610567"]
[null,null,null,null,null,null,null,null,null,null,null,221165679]
[null,null,null,null,null,null,null,null,null,null,null,221165706]
[null,null,null,null,null,null,null,null,null,null,null,2211602066]
[null,null,null,null,null,null,null,null,null,null,null,2211602512]
[null,null,null,null,null,null,null,null,null,null,null,2211602760]
[null,null,null,null,null,null,null,null,null,null,null,2211603518]
[null,null,null,null,null,null,null,null,null,null,null,2211603669]
[null,null,null,null,null,null,null,null,null,null,null,2211605653]
[null,null,null,null,null,null,null,null,null,null,null,2211605702]
[null,null,null,null,null,null,null,null,null,null,null,2211644634]
[null,null,null,null,null,null,null,null,null,null,null,2211646363]
[null,null,null,null,null,null,null,null,null,null,null,2211649682]
[null,null,null,null,null,null,null,null,null,null,null,2211655535]
[null,null,null,null,null,null,null,null,null,null,null,2211656725]
[null,null,null,null,null,null,null,null,null,null,null,2211656726]
[null,null,null,null,null,null,null,null,null,null,null,2211656985]
[null,null,null,null,null,null,null,null,null,null,null,2211656986]
[null,null,null,null,null,null,null,null,null,null,null,2211749162]
[null,null,null,null,null,null,null,null,null,null,null,2221600295]
[null,null,null,null,null,null,null,null,null,null,null,2221600296]
[null,null,null,null,null,null,null,null,null,null,null,2221600297]
[null,null,null,null,null,null,null,null,null,null,null,2221600298]
[null,null,null,null,null,null,null,null,null,null,null,2221600299]
[null,null,null,null,null,null,null,null,null,null,null,2221600301]
[null,null,null,null,null,null,null,null,null,null,null,22116001197]
[null,null,null,null,null,null,null,null,null,null,null,22116455368]
[null,null,null,null,null,null,null,null,null,null,null," 2211657940 "]
[null,null,null,null,null,null,null,null,null,null,null,2201605931]
[null,null,null,null,null,null,null,null,null,null,null,2211602001]
[null,null,null,null,null,null,null,null,null,null,null,2211604845]
[null,null,null,null,null,null,null,null,null,null,null,2211606071]
[null,null,null,null,null,null,null,null,null,null,null,2211656736]
[null,null,null,null,null,null,null,null,null,null,null,2211656742]
[null,null,null,null,null,null,null,null,null,null,null,2211656756]
[null,null,null,null,null,null,null,null,null,null,null," 2201611850 "]
[null,null,null,null,null,null,null,null,null,null,null," 2211654500 "]
[null,null,null,null,null,null,null,null,null,null,null," 2211657062 "]
[null,null,null,null,null,null,null,null,null,null,null,2211645368]
[null,null,null,null,null,null,null,null,null,null,null,2221600289]
[null,null,null,null,null,null,null,null,null,null,null," 221165536 "]
[null,null,null,null,null,null,null,null,null,null,null," 2211655535 "]
[null,null,null,null,null,null,null,null,null,null,null," 221165706 "]
[null,null,null,null,null,null,null,null,null,null,null," 215165055 "]
[null,null,null,null,null,null,null,null,null,null,null," 2211657178 "]
[null,null,null,null,null,null,null,null,null,null,null,22116506]
[null,null,null,null,null,null,null,null,null,null,null,2191606176]
[null,null,null,null,null,null,null,null,null,null,null,2211600356]
[null,null,null,null,null,null,null,null,null,null,null,2211602248]
[null,null,null,null,null,null,null,null,null,null,null,2211649162]
[null,null,null,null,null,null,null,null,null,null,null,2211656746]
[null,null,null,null,null,null,null,null,null,null,null,2211656753]
[null,null,null,null,null,null,null,null,null,null,null,2211657062]
[null,null,null,null,null,null,null,null,null,null,null,2211657940]
[null,null,null,null,null,null,null,null,null,null,null,22114554500]
[null,null,null,null,null,null,null,null,null,null,null," 2211657942 "]
[null,null,null,null,null,null,null,null,null,null,null," 2211657953 "]
[null,null,null,null,null,null,null,null,null,null,null,220102444]
[null,null,null,null,null,null,null,null,null,null,null,2181607857]
[null,null,null,null,null,null,null,null,null,null,null,2201610563]
[null,null,null,null,null,null,null,null,null,null,null,2201610566]
[null,null,null,null,null,null,null,null,null,null,null,2201610567]
[null,null,null,null,null,null,null,null,null,null,null,2211656766]
[null,null,null,null,null,null,null,null,null,null,null,2211656767]
[null,null,null,null,null,null,null,null,null,null,null," 2181601464 "]
[null,null,null,null,null,null,null,null,null,null,null," 2181601465 "]
[null,null,null,null,null,null,null,null,null,null,null," 2181609778 "]
[null,null,null,null,null,null,null,null,null,null,null,2161660069]
[null,null,null,null,null,null,null,null,null,null,null," 215160050 "]
[null,null,null,null,null,null,null,null,null,null,null," 215165004 "]
[null,null,null,null,null,null,null,null,null,null,null," 215165006 "]
[null,null,null,null,null,null,null,null,null,null,null," 217165025 "]
[null,null,null,null,null,null,null,null,null,null,null," 2181601494 "]
[null,null,null,null,null,null,null,null,null,null,null,2151600017]
[null,null,null,null,null,null,null,null,null,null,null," 215160073 "]
[null,null,null,null,null,null,null,null,null,null,null," 215165009 "]
[null,null,null,null,null,null,null,null,null,null,null," 215165091 "]
[null,null,null,null,null,null,null,null,null,null,null," 215165093 "]
[null,null,null,null,null,null,null,null,null,null,null," 216160169 "]
[null,null,null,null,null,null,null,null,null,null,null," 216165067 "]
[null,null,null,null,null,null,null,null,null,null,null," 216165096 "]
[null,null,null,null,null,null,null,null,null,null,null," 216165102 "]
[null,null,null,null,null,null,null,null,null,null,null," 214165093 "]
[null,null,null,null,null,null,null,null,null,null,null,2191606293]
[null,null,null,null,null,null,null,null,null,null,null,2201610564]
[null,null,null,null,null,null,null,null,null,null,null,2201610569]
[null,null,null,null,null,null,null,null,null,null,null,2211657178]
[null,null,null,null,null,null,null,null,null,null,null,2211606072]
[null,null,null,null,null,null,null,null,null,null,null,221600724]
[null,null,null,null,null,null,null,null,null,null,null,224656735]
[null,null,null,null,null,null,null,null,null,null,null,2201606106]
[null,null,null,null,null,null,null,null,null,null,null,2211601786]
[null,null,null,null,null,null,null,null,null,null,null,2211656743]
[null,null,null,null,null,null,null,null,null,null,null,2211656745]
[null,null,null,null,null,null,null,null,null,null,null,2211656772]
[null,null,null,null,null,null,null,null,null,null,null,2160096]
[null,null,null,null,null,null,null,null,null,null,null,201600755]
[null,null,null,null,null,null,null,null,null,null,null," 216160133 "]
[null,null,null,null,null,null,null,null,null,null,null," 217160154 "]
[null,null,null,null,null,null,null,null,null,null,null," 217165042 "]
[null,null,null,null,null,null,null,null,null,null,null," 2181601453 "]
[null,null,null,null,null,null,null,null,null,null,null," 2181601485 "]
[null,null,null,null,null,null,null,null,null,null,null," 2181601493 "]
[null,null,null,null,null,null,null,null,null,null,null,2211565869]
[null,null,null,null,null,null,null,null,null,null,null,2211644639]
[null,null,null,null,null,null,null,null,null,null,null,2211648368]
[null,null,null,null,null,null,null,null,null,null,null,217165065]
[null,null,null,null,null,null,null,null,null,null,null,220160074]
[null,null,null,null,null,null,null,null,null,null,null,2141600049]
[null,null,null,null,null,null,null,null,null,null,null,2161600069]
[null,null,null,null,null,null,null,null,null,null,null,2181600784]
[null,null,null,null,null,null,null,null,null,null,null,"2161 60097"]
[null,null,null,null,null,null,null,null,null,null,null,218160981]
[null,null,null,null,null,null,null,null,null,null,null,2191605196]
[null,null,null,null,null,null,null,null,null,null,null,2191606491]
[null,null,null,null,null,null,null,null,null,null,null,"218K1601463"]
[null,null,null,null,null,null,null,null,null,null,null,181609819]
[null,null,null,null,null,null,null,null,null,null,null,218160017]
[null,null,null,null,null,null,null,null,null,null,null,218160099]
[null,null,null,null,null,null,null,null,null,null,null,218160152]
[null,null,null,null,null,null,null,null,null,null,null,2181601764]
[null,null,null,null,null,null,null,null,null,null,null,"2171601 52"]
[null,null,null,null,null,null,null,null,null,null,null," 214160026 "]
[null,null,null,null,null,null,null,null,null,null,null," 215160031 "]
[null,null,null,null,null,null,null,null,null,null,null," 215160109 "]
[null,null,null,null,null,null,null,null,null,null,null," 215160123 "]
[null,null,null,null,null,null,null,null,null,null,null," 215165101 "]
[null,null,null,null,null,null,null,null,null,null,null," 215165126 "]
[null,null,null,null,null,null,null,null,null,null,null," 216160014 "]
[null,null,null,null,null,null,null,null,null,null,null," 216160078 "]
[null,null,null,null,null,null,null,null,null,null,null," 216160129 "]
[null,null,null,null,null,null,null,null,null,null,null," 216165003 "]
[null,null,null,null,null,null,null,null,null,null,null," 216165060 "]
[null,null,null,null,null,null,null,null,null,null,null,2141650101]
[null,null,null,null,null,null,null,null,null,null,null," 2211655536 "]
[null,null,null,null,null,null,null,null,null,null,null,2211601204]
[null,null,null,null,null,null,null,null,null,null,null,2211601545]
[null,null,null,null,null,null,null,null,null,null,null,2211602451]
[null,null,null,null,null,null,null,null,null,null,null,2211605003]
[null,null,null,null,null,null,null,null,null,null,null,2211605443]
[null,null,null,null,null,null,null,null,null,null,null,2211605681]
[null,null,null,null,null,null,null,null,null,null,null,2211655536]
[null,null,null,null,null,null,null,null,null,null,null,2211656760]
[null,null,null,null,null,null,null,null,null,null,null,2211656979]
[null,null,null,null,null,null,null,null,null,null,null,2221600300]
[null,null,null,null,null,null,null,null,null,null,null,2221600639]
[null,null,null,null,null,null,null,null,null,null,null,2221607793]
[null,null,null,null,null,null,null,null,null,null,null,2221611484]
[null,null,null,null,null,null,null,null,null,null,null,2221612950]
[null,null,null,null,null,null,null,null,null,null,null,2221616796]
[null,null,null,null,null,null,null,null,null,null,null,2221616797]
[null,null,null,null,null,null,null,null,null,null,null,2221617223]
[null,null,null,null,null,null,null,null,null,null,null,2221617224]
[null,null,null,null,null,null,null,null,null,null,null,2221617225]
[null,null,null,null,null,null,null,null,null,null,null,2221617230]
[null,null,null,null,null,null,null,null,null,null,null,2221617239]
[null,null,null,null,null,null,null,null,null,null,null,2221617240]
[null,null,null,null,null,null,null,null,null,null,null,2221617249]
[null,null,null,null,null,null,null,null,null,null,null,2221617250]
[null,null,null,null,null,null,null,null,null,null,null,2221617251]
[null,null,null,null,null,null,null,null,null,null,null,2221617252]
[null,null,null,null,null,null,null,null,null,null,null,2221617253]
[null,null,null,null,null,null,null,null,null,null,null,2221617254]
[null,null,null,null,null,null,null,null,null,null,null,2221617255]
[null,null,null,null,null,null,null,null,null,null,null,2221617256]
[null,null,null,null,null,null,null,null,null,null,null,2221617257]
[null,null,null,null,null,null,null,null,null,null,null,2221617258]
[null,null,null,null,null,null,null,null,null,null,null,2221617259]
[null,null,null,null,null,null,null,null,null,null,null,2221617260]
[null,null,null,null,null,null,null,null,null,null,null,2221617261]
[null,null,null,null,null,null,null,null,null,null,null,2221617262]
[null,null,null,null,null,null,null,null,null,null,null,2221617263]
[null,null,null,null,null,null,null,null,null,null,null,2221617264]
[null,null,null,null,null,null,null,null,null,null,null,2221617265]
[null,null,null,null,null,null,null,null,null,null,null,2221617266]
[null,null,null,null,null,null,null,null,null,null,null,2221617267]
[null,null,null,null,null,null,null,null,null,null,null,2221617268]
[null,null,null,null,null,null,null,null,null,null,null,2221617269]
[null,null,null,null,null,null,null,null,null,null,null,2221617270]
[null,null,null,null,null,null,null,null,null,null,null,2221617271]
[null,null,null,null,null,null,null,null,null,null,null,2221617272]
[null,null,null,null,null,null,null,null,null,null,null,2221618117]
[null,null,null,null,null,null,null,null,null,null,null,2221618159]
[null,null,null,null,null,null,null,null,null,null,null,2221618160]
[null,null,null,null,null,null,null,null,null,null,null,2221618161]
[null,null,null,null,null,null,null,null,null,null,null,2211601197]
[null,null,null,null,null,null,null,null,null,null,null,2211656731]
[null,null,null,null,null,null,null,null,null,null,null,2211656735]
[null,null,null,null,null,null,null,null,null,null,null,221165511]
[null,null,null,null,null,null,null,null,null,null,null,2201605213]
[null,null,null,null,null,null,null,null,null,null,null,2211656989]
[null,null,null,null,null,null,null,null,null,null,null,22216118160]
[null,null,null,null,null,null,null,null,null,null,null,2201611850]
[null,null,null,null,null,null,null,null,null,null,null,2211602431]
[null,null,null,null,null,null,null,null,null,null,null,2211605543]
[null,null,null,null,null,null,null,null,null,null,null,2211656732]
[null,null,null,null,null,null,null,null,null,null,null,2211656734]
[null,null,null,null,null,null,null,null,null,null,null,2211656738]
[null,null,null,null,null,null,null,null,null,null,null,2211656741]
[null,null,null,null,null,null,null,null,null,null,null,2211656751]
[null,null,null,null,null,null,null,null,null,null,null,2211656757]
[null,null,null,null,null,null,null,null,null,null,null,2211656769]
[null,null,null,null,null,null,null,null,null,null,null,2211655511]
[null,null,null,null,null,null,null,null,null,null,null,2221616618]
[null,null,null,null,null,null,null,null,null,null,null,20950001]
[null,null,null,null,null,null,null,null,null,null,null,212165091]
[null,null,null,null,null,null,null,null,null,null,null,216260029]
[null,null,null,null,null,null,null,null,null,null,null,217265100]
[null,null,null,null,null,null,null,null,null,null,null,216601591]
[null,null,null,null,null,null,null,null,null,null,null,220600729]
[null,null,null,null,null,null,null,null,null,null,null,215165003]
[null,null,null,null,null,null,null,null,null,null,null,217170033]
[null,null,null,null,null,null,null,null,null,null,null,2211656758]
[null,null,null,null,null,null,null,null,null,null,null,221156726]
[null,null,null,null,null,null,null,null,null,null,null,221618161]
[null,null,null,null,null,null,null,null,null,null,null,2211636845]
[null,null,null,null,null,null,null,null,null,null,null,2221617246]
[null,null,null,null,null,null,null,null,null,null,null,22211601445]
[null,null,null,null,null,null,null,null,null,null,null,221160545]
[null,null,null,null,null,null,null,null,null,null,null,2211606681]
[null,null,null,null,null,null,null,null,null,null,null,2181601452]
[null,null,null,null,null,null,null,null,null,null,null,2201602457]
[null,null,null,null,null,null,null,null,null,null,null,21660097]
[null,null,null,null,null,null,null,null,null,null,null,201500001]
[null,null,null,null,null,null,null,null,null,null,null,219602476]
[null,null,null,null,null,null,null,null,null,null,null,218160147]
[null,null,null,null,null,null,null,null,null,null,null,214160087]
[null,null,null,null,null,null,null,null,null,null,null,21560105]
[null,null,null,null,null,null,null,null,null,null,null,21816011469]
[null,null,null,null,null,null,null,null,null,null,null,216165111]
[null,null,null,null,null,null,null,null,null,null,null,2211656715]
[null,null,null,null,null,null,null,null,null,null,null," 2181608651 "]
[null,null,null,null,null,null,null,null,null,null,null," 2181610225 "]
[null,null,null,null,null,null,null,null,null,null,null," 2211604197 "]
[null,null,null,null,null,null,null,null,null,null,null," 2211605208 "]
[null,null,null,null,null,null,null,null,null,null,null," 2211648624 "]
[null,null,null,null,null,null,null,null,null,null,null," 2211649464 "]
[null,null,null,null,null,null,null,null,null,null,null," 2211649682 "]
[null,null,null,null,null,null,null,null,null,null,null," 2221600295 "]
[null,null,null,null,null,null,null,null,null,null,null," 2221602809 "]
[null,null,null,null,null,null,null,null,null,null,null," 2221602816 "]
[null,null,null,null,null,null,null,null,null,null,null," 2221604491 "]
[null,null,null,null,null,null,null,null,null,null,null," 2221605068 "]
[null,null,null,null,null,null,null,null,null,null,null," 2221605173 "]
[null,null,null,null,null,null,null,null,null,null,null," 2221608384 "]
[null,null,null,null,null,null,null,null,null,null,null," 2221609708 "]
[null,null,null,null,null,null,null,null,null,null,null," 2221609714 "]
[null,null,null,null,null,null,null,null,null,null,null," 2221609729 "]
[null,null,null,null,null,null,null,null,null,null,null," 2221609962 "]
[null,null,null,null,null,null,null,null,null,null,null," 2221610317 "]
[null,null,null,null,null,null,null,null,null,null,null," 2221610318 "]
[null,null,null,null,null,null,null,null,null,null,null," 2221610349 "]
[null,null,null,null,null,null,null,null,null,null,null," 2221617228 "]
[null,null,null,null,null,null,null,null,null,null,null," 2221617230 "]
[null,null,null,null,null,null,null,null,null,null,null," 2221617248 "]
[null,null,null,null,null,null,null,null,null,null,null," 2221617249 "]
[null,null,null,null,null,null,null,null,null,null,null," 2221617253 "]
[null,null,null,null,null,null,null,null,null,null,null," 2221617258 "]
[null,null,null,null,null,null,null,null,null,null,null," 2221617263 "]
[null,null,null,null,null,null,null,null,null,null,null," 2221617271 "]
[null,null,null,null,null,null,null,null,null,null,null," 2231608574 "]
[null,null,null,null,null,null,null,null,null,null,null," 2231608575 "]
[null,null,null,null,null,null,null,null,null,null,null," 2231608577 "]
[null,null,null,null,null,null,null,null,null,null,null," 2231608579 "]
[null,null,null,null,null,null,null,null,null,null,null," 2231608580 "]
[null,null,null,null,null,null,null,null,null,null,null," 2231608581 "]
[null,null,null,null,null,null,null,null,null,null,null," 2231608583 "]
[null,null,null,null,null,null,null,null,null,null,null," 2231609823 "]
[null,null,null,null,null,null,null,null,null,null,null," 2231611350 "]
[null,null,null,null,null,null,null,null,null,null,null," 2231611351 "]
[null,null,null,null,null,null,null,null,null,null,null," 2231611352 "]
[null,null,null,null,null,null,null,null,null,null,null," 2231611353 "]
[null,null,null,null,null,null,null,null,null,null,null," 2231611354 "]
[null,null,null,null,null,null,null,null,null,null,null," 2231611355 "]
[null,null,null,null,null,null,null,null,null,null,null," 2231612949 "]
[null,null,null,null,null,null,null,null,null,null,null,2211602782]
[null,null,null,null,null,null,null,null,null,null,null,2211603661]
[null,null,null,null,null,null,null,null,null,null,null," 216160039 "]
[null,null,null,null,null,null,null,null,null,null,null," 2181609728 "]
[null,null,null,null,null,null,null,null,null,null,null," 2201605213 "]
[null,null,null,null,null,null,null,null,null,null,null," 2211601545 "]
[null,null,null,null,null,null,null,null,null,null,null," 2211602339 "]
[null,null,null,null,null,null,null,null,null,null,null," 2211602699 "]
[null,null,null,null,null,null,null,null,null,null,null," 2211603320 "]
[null,null,null,null,null,null,null,null,null,null,null," 2211604030 "]
[null,null,null,null,null,null,null,null,null,null,null," 2211604981 "]
[null,null,null,null,null,null,null,null,null,null,null," 2211605003 "]
[null,null,null,null,null,null,null,null,null,null,null," 2211605226 "]
[null,null,null,null,null,null,null,null,null,null,null," 2211605443 "]
[null,null,null,null,null,null,null,null,null,null,null," 2211605532 "]
[null,null,null,null,null,null,null,null,null,null,null," 2211605681 "]
[null,null,null,null,null,null,null,null,null,null,null," 2211614489 "]
[null,null,null,null,null,null,null,null,null,null,null," 2211649162 "]
[null,null,null,null,null,null,null,null,null,null,null," 2221600299 "]
[null,null,null,null,null,null,null,null,null,null,null," 2221600300 "]
[null,null,null,null,null,null,null,null,null,null,null," 2221600639 "]
[null,null,null,null,null,null,null,null,null,null,null," 2221604691 "]
[null,null,null,null,null,null,null,null,null,null,null," 2221605330 "]
[null,null,null,null,null,null,null,null,null,null,null," 2221605393 "]
[null,null,null,null,null,null,null,null,null,null,null," 2221607793 "]
[null,null,null,null,null,null,null,null,null,null,null," 2221608813 "]
[null,null,null,null,null,null,null,null,null,null,null," 2221611484 "]
[null,null,null,null,null,null,null,null,null,null,null," 2221612950 "]
[null,null,null,null,null,null,null,null,null,null,null," 2221616796 "]
[null,null,null,null,null,null,null,null,null,null,null," 2221616797 "]
[null,null,null,null,null,null,null,null,null,null,null," 2221617225 "]
[null,null,null,null,null,null,null,null,null,null,null," 2221617239 "]
[null,null,null,null,null,null,null,null,null,null,null," 2221617250 "]
[null,null,null,null,null,null,null,null,null,null,null," 2221617251 "]
[null,null,null,null,null,null,null,null,null,null,null," 2221617252 "]
[null,null,null,null,null,null,null,null,null,null,null," 2221617254 "]
[null,null,null,null,null,null,null,null,null,null,null," 2221617256 "]
[null,null,null,null,null,null,null,null,null,null,null," 2221617257 "]
[null,null,null,null,null,null,null,null,null,null,null," 2221617259 "]
[null,null,null,null,null,null,null,null,null,null,null," 2221617260 "]
[null,null,null,null,null,null,null,null,null,null,null," 2221617261 "]
[null,null,null,null,null,null,null,null,null,null,null," 2221617262 "]
[null,null,null,null,null,null,null,null,null,null,null," 2221617264 "]
[null,null,null,null,null,null,null,null,null,null,null," 2221617266 "]
[null,null,null,null,null,null,null,null,null,null,null," 2221617267 "]
[null,null,null,null,null,null,null,null,null,null,null," 2221617268 "]
[null,null,null,null,null,null,null,null,null,null,null," 2221617269 "]
[null,null,null,null,null,null,null,null,null,null,null," 2221617270 "]
[null,null,null,null,null,null,null,null,null,null,null," 2221617272 "]
[null,null,null,null,null,null,null,null,null,null,null," 2221617341 "]
[null,null,null,null,null,null,null,null,null,null,null," 2221618117 "]
[null,null,null,null,null,null,null,null,null,null,null," 2221618159 "]
[null,null,null,null,null,null,null,null,null,null,null," 2221618160 "]
[null,null,null,null,null,null,null,null,null,null,null," 2221618161 "]
[null,null,null,null,null,null,null,null,null,null,null," 2211602451 "]
[null,null,null,null,null,null,null,null,null,null,null," 2211602782 "]
[null,null,null,null,null,null,null,null,null,null,null," 2211603661 "]
[null,null,null,null,null,null,null,null,null,null,null," 2211656715 "]
[null,null,null,null,null,null,null,null,null,null,null," 2221617240 "]
[null,null,null,null,null,null,null,null,null,null,null,221617268]
[null,null,null,null,null,null,null,null,null,null,null," 2211646363 "]
[null,null,null,null,null,null,null,null,null,null,null," 2221616618 "]
[null,null,null,null,null,null,null,null,null,null,null," 2221617223 "]
[null,null,null,null,null,null,null,null,null,null,null," 2221617224 "]
[null,null,null,null,null,null,null,null,null,null,null," 2201605931 "]
[null,null,null,null,null,null,null,null,null,null,null," 2211602248 "]
[null,null,null,null,null,null,null,null,null,null,null," 2211602512 "]
[null,null,null,null,null,null,null,null,null,null,null," 2211602760 "]
[null,null,null,null,null,null,null,null,null,null,null," 2211603518 "]
[null,null,null,null,null,null,null,null,null,null,null," 2211603669 "]
[null,null,null,null,null,null,null,null,null,null,null," 2211604845 "]
[null,null,null,null,null,null,null,null,null,null,null," 2211605653 "]
[null,null,null,null,null,null,null,null,null,null,null," 2211605702 "]
[null,null,null,null,null,null,null,null,null,null,null," 2211644634 "]
[null,null,null,null,null,null,null,null,null,null,null," 2221600296 "]
[null,null,null,null,null,null,null,null,null,null,null," 2221600297 "]
[null,null,null,null,null,null,null,null,null,null,null," 2221600298 "]
[null,null,null,null,null,null,null,null,null,null,null," 2221600301 "]
[null,null,null,null,null,null,null,null,null,null,null,2181608651]
[null,null,null,null,null,null,null,null,null,null,null,2181609728]
[null,null,null,null,null,null,null,null,null,null,null,2181610225]
[null,null,null,null,null,null,null,null,null,null,null,2211602339]
[null,null,null,null,null,null,null,null,null,null,null,2211602699]
[null,null,null,null,null,null,null,null,null,null,null,2211603320]
[null,null,null,null,null,null,null,null,null,null,null,2211604030]
[null,null,null,null,null,null,null,null,null,null,null,2211604197]
[null,null,null,null,null,null,null,null,null,null,null,2211604981]
[null,null,null,null,null,null,null,null,null,null,null,2211605208]
[null,null,null,null,null,null,null,null,null,null,null,2211605226]
[null,null,null,null,null,null,null,null,null,null,null,2211605532]
[null,null,null,null,null,null,null,null,null,null,null,2211614489]
[null,null,null,null,null,null,null,null,null,null,null,2211648624]
[null,null,null,null,null,null,null,null,null,null,null,2211649464]
[null,null,null,null,null,null,null,null,null,null,null,2211656981]
[null,null,null,null,null,null,null,null,null,null,null,2221602809]
[null,null,null,null,null,null,null,null,null,null,null,2221602816]
[null,null,null,null,null,null,null,null,null,null,null,2221604491]
[null,null,null,null,null,null,null,null,null,null,null,2221604691]
[null,null,null,null,null,null,null,null,null,null,null,2221605068]
[null,null,null,null,null,null,null,null,null,null,null,2221605173]
[null,null,null,null,null,null,null,null,null,null,null,2221605330]
[null,null,null,null,null,null,null,null,null,null,null,2221605393]
[null,null,null,null,null,null,null,null,null,null,null,2221608384]
[null,null,null,null,null,null,null,null,null,null,null,2221608813]
[null,null,null,null,null,null,null,null,null,null,null,2221609708]
[null,null,null,null,null,null,null,null,null,null,null,2221609714]
[null,null,null,null,null,null,null,null,null,null,null,2221609729]
[null,null,null,null,null,null,null,null,null,null,null,2221609962]
[null,null,null,null,null,null,null,null,null,null,null,2221610317]
[null,null,null,null,null,null,null,null,null,null,null,2221610318]
[null,null,null,null,null,null,null,null,null,null,null,2221610349]
[null,null,null,null,null,null,null,null,null,null,null,2221614520]
[null,null,null,null,null,null,null,null,null,null,null,2221617228]
[null,null,null,null,null,null,null,null,null,null,null,2221617248]
[null,null,null,null,null,null,null,null,null,null,null,2221617341]
[null,null,null,null,null,null,null,null,null,null,null,2231608574]
[null,null,null,null,null,null,null,null,null,null,null,2231608575]
[null,null,null,null,null,null,null,null,null,null,null,2231608577]
[null,null,null,null,null,null,null,null,null,null,null,2231608579]
[null,null,null,null,null,null,null,null,null,null,null,2231608580]
[null,null,null,null,null,null,null,null,null,null,null,2231608581]
[null,null,null,null,null,null,null,null,null,null,null,2231608583]
[null,null,null,null,null,null,null,null,null,null,null,2231609823]
[null,null,null,null,null,null,null,null,null,null,null,2231611350]
[null,null,null,null,null,null,null,null,null,null,null,2231611351]
[null,null,null,null,null,null,null,null,null,null,null,2231611352]
[null,null,null,null,null,null,null,null,null,null,null,2231611353]
[null,null,null,null,null,null,null,null,null,null,null,2231611354]
[null,null,null,null,null,null,null,null,null,null,null,2231611355]
[null,null,null,null,null,null,null,null,null,null,null,2231612949]
[null,null,null,null,null,null,null,null,null,null,null," 212165091 "]
[null,null,null,null,null,null,null,null,null,null,null," 216160047 "]
[null,null,null,null,null,null,null,null,null,null,null," 216165095 "]
[null,null,null,null,null,null,null,null,null,null,null,20950109]
[null,null,null,null,null,null,null,null,null,null,null," 20950109 "]
[null,null,null,null,null,null,null,null,null,null,null,221617267]
[null,null,null,null,null,null,null,null,null,null,null,222161859]
[null,null,null,null,null,null,null,null,null,null,null,222161860]
[null,null,null,null,null,null,null,null,null,null,null,2201600504]
[null,null,null,null,null,null,null,null,null,null,null," 215165001 "]
[null,null,null,null,null,null,null,null,null,null,null," 215165011 "]
[null,null,null,null,null,null,null,null,null,null,null,212160173]
[null,null,null,null,null,null,null,null,null,null,null,218609832]
[null,null,null,null,null,null,null,null,null,null,null,21816014633]
[null,null,null,null,null,null,null,null,null,null,null,218160225]
[null,null,null,null,null,null,null,null,null,null,null,221161448]
[null,null,null,null,null,null,null,null,null,null,null,221603320]
[null,null,null,null,null,null,null,null,null,null,null,2221605373]
[null,null,null,null,null,null,null,null,null,null,null,2221656715]
[null,null,null,null,null,null,null,null,null,null,null," 2221617250"]
[null,null,null,null,null,null,null,null,null,null,null," 2221617341"]
[null,null,null,null,null,null,null,null,null,null,null,"2221617240 "]
[null,null,null,null,null,null,null,null,null,null,null,220602437]
[null,null,null,null,null,null,null,null,null,null,null," 2211749162 "]
[null,null,null,null,null,null,null,null,null,null,null," 2221605373 "]
[null,null,null,null,null,null,null,null,null,null,null," 2221614520 "]
[null,null,null,null,null,null,null,null,null,null,null,2236129449]
[null,null,null,null,null,null,null,null,null,null,null,220162432]
[null,null,null,null,null,null,null,null,null,null,null,21816011454]
[null,null,null,null,null,null,null,null,null,null,null,220160563]
[null,null,null,null,null,null,null,null,null,null,null,2141651081]
[null,null,null,null,null,null,null,null,null,null,null,2200000043]
[null,null,null,null,null,null,null,null,null,null,null," 214165034 "]
[null,null,null,null,null,null,null,null,null,null,null," 214165068 "]
[null,null,null,null,null,null,null,null,null,null,null,2015160025]
[null,null,null,null,null,null,null,null,null,null,null,21816090]
[null,null,null,null,null,null,null,null,null,null,null,216165095]
[null,null,null,null,null,null,null,null,null,null,null,2161655034]
[null,null,null,null,null,null,null,null,null,null,null,215165200]
[null,null,null,null,null,null,null,null,null,null,null,2181609756]
[null,null,null,null,null,null,null,null,null,null,null,"217160026 "]
[null,null,null,null,null,null,null,null,null,null,null,291602474]
[null,null,null,null,null,null,null,null,null,null,null," 214160102 "]
[null,null,null,null,null,null,null,null,null,null,null," 2181609825"]
[null,null,null,null,null,null,null,null,null,null,null," 214160140 "]
[null,null,null,null,null,null,null,null,null,null,null," 215160040 "]
[null,null,null,null,null,null,null,null,null,null,null," 215165079 "]
[null,null,null,null,null,null,null,null,null,null,null,2231617300]
[null,null,null,null,null,null,null,null,null,null,null," 217165343 "]
[null,null,null,null,null,null,null,null,null,null,null," 2211604664 "]
[null,null,null,null,null,null,null,null,null,null,null," 2221609240 "]
[null,null,null,null,null,null,null,null,null,null,null," 2231600106 "]
[null,null,null,null,null,null,null,null,null,null,null," 2231600115 "]
[null,null,null,null,null,null,null,null,null,null,null," 2231602981 "]
[null,null,null,null,null,null,null,null,null,null,null," 2231603288 "]
[null,null,null,null,null,null,null,null,null,null,null," 2231603382 "]
[null,null,null,null,null,null,null,null,null,null,null," 2231603895 "]
[null,null,null,null,null,null,null,null,null,null,null," 2231608582 "]
[null,null,null,null,null,null,null,null,null,null,null," 2231617294 "]
[null,null,null,null,null,null,null,null,null,null,null," 2231617295 "]
[null,null,null,null,null,null,null,null,null,null,null," 2231617296 "]
[null,null,null,null,null,null,null,null,null,null,null," 2231617297 "]
[null,null,null,null,null,null,null,null,null,null,null," 2231617298 "]
[null,null,null,null,null,null,null,null,null,null,null," 2231617299 "]
[null,null,null,null,null,null,null,null,null,null,null," 2231617571 "]
[null,null,null,null,null,null,null,null,null,null,null,2211605470]
[null,null,null,null,null,null,null,null,null,null,null,2216097229]
[null,null,null,null,null,null,null,null,null,null,null,2221605156]
[null,null,null,null,null,null,null,null,null,null,null," 215165013 "]
[null,null,null,null,null,null,null,null,null,null,null," 2181608826 "]
[null,null,null,null,null,null,null,null,null,null,null,2231600106]
[null,null,null,null,null,null,null,null,null,null,null,2231600115]
[null,null,null,null,null,null,null,null,null,null,null,2231603895]
[null,null,null,null,null,null,null,null,null,null,null,2231617571]
[null,null,null,null,null,null,null,null,null,null,null," 2181609720 "]
[null,null,null,null,null,null,null,null,null,null,null," 2211605470 "]
[null,null,null,null,null,null,null,null,null,null,null," 2221604378 "]
[null,null,null,null,null,null,null,null,null,null,null,220602434]
[null,null,null,null,null,null,null,null,null,null,null,21616016]
[null,null,null,null,null,null,null,null,null,null,null,21660139]
[null,null,null,null,null,null,null,null,null,null,null,215165013]
[null,null,null,null,null,null,null,null,null,null,null,218160454]
[null,null,null,null,null,null,null,null,null,null,null,21916024709]
[null,null,null,null,null,null,null,null,null,null,null,"2141 60049"]
[null,null,null,null,null,null,null,null,null,null,null,"220160Q2447"]
[null,null,null,null,null,null,null,null,null,null,null,"22O1600730"]
[null,null,null,null,null,null,null,null,null,null,null," 213165045 "]
[null,null,null,null,null,null,null,null,null,null,null,21765007]
[null,null,null,null,null,null,null,null,null,null,null,"214160173 "]
[null,null,null,null,null,null,null,null,null,null,null,"215160046 "]
[null,null,null,null,null,null,null,null,null,null,null,"217160002 "]
[null,null,null,null,null,null,null,null,null,null,null,"217160198 "]
[null,null,null,null,null,null,null,null,null,null,null,"217165016 "]
[null,null,null,null,null,null,null,null,null,null,null,"2181601479 "]
[null,null,null,null,null,null,null,null,null,null,null,"2181609802 "]
[null,null,null,null,null,null,null,null,null,null,null,"2181609813 "]
[null,null,null,null,null,null,null,null,null,null,null,"2191602461 "]
[null,null,null,null,null,null,null,null,null,null,null,"2201600737 "]
[null,null,null,null,null,null,null,null,null,null,null,"2201600748 "]
[null,null,null,null,null,null,null,null,null,null,null,2221604378]
[null,null,null,null,null,null,null,null,null,null,null," 2231617300 "]
[null,null,null,null,null,null,null,null,null,null,null,"2231600115 "]
[null,null,null,null,null,null,null,null,null,null,null,2161600297]
[null,null,null,null,null,null,null,null,null,null,null," 214165108 "]
[null,null,null,null,null,null,null,null,null,null,null,"2211656757 "]
[null,null,null,null,null,null,null,null,null,null,null,22201602453]
[null,null,null,null,null,null,null,null,null,null,null,"2181609770R"]
[null,null,null,null,null,null,null,null,null,null,null,2171645030]
[null,null,null,null,null,null,null,null,null,null,null,2201601563]
[null,null,null,null,null,null,null,null,null,null,null,2181201503]
[null,null,null,null,null,null,null,null,null,null,null,213165045]
[null,null,null,null,null,null,null,null,null,null,null,2201600764]

{"sheet":"نموذج ادخال","index":1,"n_rows":27,"n_cols":41,"rows_kept":27,"cut":false,"hidden":false,"merged":[[14,2,14,3],[12,3,12,4],[20,13,20,17],[20,8,20,11],[12,13,12,14],[12,15,12,16],[14,12,14,13],[14,14,14,15],[18,17,18,18],[20,18,20,19],[18,8,18,9],[18,10,18,12],[18,13,18,14],[18,15,18,16],[22,8,22,10],[22,11,22,13],[22,17,22,19],[24,8,24,9],[24,10,24,11],[24,13,24,14],[24,15,24,19],[22,4,22,6],[24,2,24,3],[24,4,24,6],[20,2,20,3],[18,4,18,6],[20,6,20,7],[20,4,20,5],[26,4,26,19],[10,3,10,4],[10,5,10,6],[10,7,10,8],[10,9,10,10],[10,14,10,15],[12,5,12,6],[12,7,12,8],[12,9,12,10],[14,4,14,7],[14,10,14,11],[16,9,16,10],[16,11,16,13],[16,2,16,3],[16,6,16,7],[22,2,22,3],[1,6,1,8],[3,1,3,20],[12,11,12,12],[6,3,6,4],[6,6,6,7],[6,8,6,10],[8,2,8,3],[8,4,8,8],[10,11,10,12],[1,9,1,14],[1,2,1,5]]}
[null,null,null,null,null,null,null,null,null,null,null,null,null,null,null,null,null,null,null,null,null,null,null,null,null,null,null,null,null,null,null,null,null,null,null,null,null,null,null,null,"\"C:\\Users\\khairi\\Desktop\\شغل الكلية\\منظومة الكلية\\no pic.jpg\""]
[null,null,"البحث عن طالب",null,null,null,null,null,null,121212,null,null,null,null,null,null,null,null,null,null,null,null,55,72,null,6]
[]
[null,"نموذج ادخال و أستعلام عن بيانات طالب"]
[]
[]
[null,null,"الرقــــم :",null,null,null,"رقم القيد :"]
[]
[null,null,"الرقم الوطنــــــــي :"]
[]
[null,null,"الاسم :",null,null,"اسم الاب :",null,null,null,"اسم الجد :",null,null,null,"اللقب :"]
[]
[null,null,": Name",null,null," : Father",null,null,null,": Grandfather",null,null,null," Surname : "]
[]
[null,null,"اسم الأم ثلاثي :",null,null,null,null,null,null,"الجنس :",null,null,"الجنسية :"]
[]
[null,null,"تاريخ الميلاد :",null,null,null,1973,null,null,"مكان الميلاد :"]
[]
[null,null,"تاريخ الالتحاق :",null,null,null,null,null,"العام الجامعي :",null,null,null,null,"الفصل الدراسي :",null,null,null,"المجموعة :",null,null,null,null,{"$f":"kh_ShowImage(X19,Q17,$W$2,$X$2)","v":true},121212]
[]
[null,null,"السمســـــــــــــتر :",null,null,null,"القسم :",null,null,null,null,null,null,null,null,null,null,null,"Departmen :"]
[]
[null,null,"حالة الطالب : ",null,null,null,null,null,"تاريخ الانقطاع :",null,null,null,null,null,null,"سبب الانقطاع :"]
[]
[null,null,"تاريخ التخرج : ",null,null,null,null,null,"فصل التخرج :",null,null,null,null,"كرت المنحة : "]
[]
[null,null,"مسار الصورة :"]

{"sheet":"data","index":2,"n_rows":6,"n_cols":37,"rows_kept":6,"cut":false,"hidden":false,"merged":[[1,1,1,2],[0,1,0,2]]}
[1,"اختار مادة لعرضها",null,4,5,6,7,8,9,10,11,12,13,14,15,16,17,18,19,20,21,22,23,24,25,26,27,28,29,30,31,32,33,34,35,36,37]
[null,"الحاسوب*"]
[null,null,null,null,null,null,null,null,null,null,null,null,null,null,null,null,null,null,null,null,null,"مك"]
["الرقم","رقم القيد","الاسم بالعربي","الاسم","اسم الاب","اسم الجد","اللقب","الاسم بالانجليزي","Name","Father","Grandfather","Surname","الرقم الوطني","اليوم","الشهر","السنة","تاريخ الميلاد","مكان الميلاد","الجنس","الجنسية","اسم الام ثلاثي","سنة الدخول","العام الجامعي","الفصل الدراسي","الفصل-S","القسم بالعربي","Department","المجموعة","حالة الطالب","تاريخ الانقطاع","سحب الملف","تاريخ التخرج","فصل التخرج","كرت المنحة","الصورة ","عمود4","عمود1"]
[{"$f":"SUBTOTAL(3,$B$5:B5)","v":1},121212]
[{"$f":"SUBTOTAL(3,$B$5:B6)","v":2},121213]